Workbook

Sheet TOT-0216
B2: ANEXO III al Memorándum D.T.E.E. N° 243 / 2017
A4: ENTE NACIONAL REGULADOR
A5: DE LA ELECTRICIDAD
B7: PRESTADOR DE LA FUNCIÓN TÉCNICA DE TRANSPORTE DE ENERGÍA ELÉCTRICA
B9: TRANSBA S.A.
B11: TOTAL DE PENALIZACIONES A APLICAR
B13: 1 | C13: FALSE
B14: Desde el 01 al 29 de Febrero de 2016
B16: Sanciones duplicadas por tasa de falla > 4 Sal. x año/100km.
C18: 1.- | D18: LÍNEAS | I18: ='LI-02 (2)'!AC42 -> 154108.6
C20: 2.- | D20: CONEXIÓN
D22: 2.1.- | E22: Transformación | I22: ='T-02 (2)'!AC44 -> 45584
D24: 2.2.- | E24: Salidas | I24: ='SA-02 (2)'!V43 -> 8448.35
C26: 3.- | D26: Equipamiento propio Res. 01_03 | I26: ='RE-02 (1)'!AD44 -> 3470.75
F29: TOTAL | G29: =ROUND(SUM(I18:I27),2) -> 211611.7
C31: Valores remuneratorios según Acuerdo SEE-ENRE-TRANSBA - 2016-2017

Sheet LI-02 (1)
B2: ='TOT-0216'!B2 -> ANEXO III al Memorándum D.T.E.E. N° 243 / 2017
A4: ENTE NACIONAL REGULADOR
A5: DE LA ELECTRICIDAD
F8: SISTEMA DE TRANSPORTE DE ENERGÍA ELÉCTRICA POR DISTRIBUCIÓN TRONCAL - TRANSBA S.A.
F10: 1.- LÍNEAS
B12: =+'TOT-0216'!B14 -> Desde el 01 al 29 de Febrero de 2016
F14: $/100 km-h : LÍNEAS 220 kV | G14: 392.94 | L14: FACTOR DE PENALIZACIÓN (CLASE A) K= | M14: =150*'TOT-0216'!B13 -> 150 | N14: =IF(M14=150," ",IF(M14=300,"Coeficiente duplicado por tasa de falla >4 Sal. x año/100 km.","REVISAR COEFICIENTE")) -> 
F15: $/100 km-h : LÍNEAS 132 kV | G15: 375.48 | L15: FACTOR DE PENALIZACIÓN (CLASE B) K= | M15: =50*'TOT-0216'!B13 -> 50 | N15: =IF(M15=50," ",IF(M15=100,"Coeficiente duplicado por tasa de falla >4 Sal. x año/100 km.","REVISAR COEFICIENTE")) -> 
F16: $/100 km-h : LÍNEAS 66 kV | G16: 375.48 | L16: FACTOR DE PENALIZACIÓN (CLASE C) K= | M16: =10*'TOT-0216'!B13 -> 10 | N16: =IF(M16=10," ",IF(M16=20,"Coeficiente duplicado por tasa de falla >4 Sal. x año/100 km.","REVISAR COEFICIENTE")) -> 
C17: 3 | D17: 4 | E17: 5 | F17: 6 | G17: 7 | H17: 8 | I17: 9 | J17: 10 | K17: 11 | L17: 12 | M17: 13 | N17: 14 | O17: 15 | P17: 16 | Q17: 17 | R17: 18 | S17: 19 | T17: 20 | U17: 21 | V17: 22 | W17: 23 | X17: 24 | Y17: 25 | Z17: 26 | AA17: 27 | AB17: 28 | AC17: 29
C18: N° | D18: INDISP | E18: ID EQUIPO | F18: LÍNEAS | G18: U [kV] | H18: Long. [km] | I18: CLASE | J18: $/h | K18: Salida | L18: Entrada | M18: Hs. Indisp | N18: Minutos Indisp. | O18: Tipo Sal.(²) | P18: C.R. % | Q18: K (CLASE) | R18: PENALIZ. PROGRAM. | S18: REDUCC. PROGRAM. | T18: PENALIZACIÓN FORZADA Por Salida 1ras. 3 hs. hs. Restantes | W18: REDUCC. FORZADA Por Salida 1ras. 3 hs. hs. Restantes | Z18: RESTANTE FORZADA | AA18: REDUCC. RESTANTE | AB18: Informó en Térm. | AC18: TOTAL PENALIZAC.
C21: 1 | D21: 298618 | E21: 1524 | F21: TORNQUIST - BAHIA BLANCA | G21: 132 | H21: 77.3 | I21: C | J21: =IF(G21=220,$G$14,IF(G21=132,$G$15,$G$16))*IF(H21>25,H21,25)/100 -> 290.24604 | K21: 2016-02-01T10:21:00 | L21: 2016-02-03T16:53:00 | M21: =IF(F21="","",(L21-K21)*24) -> 54.53333333 | N21: =IF(F21="","",ROUND((L21-K21)*24*60,0)) -> 3272 | O21: P | P21: 0,000 | Q21: =IF(I21="A",$M$14,IF(I21="B",$M$15,$M$16)) -> 10 | R21: =IF(O21="P",ROUND(N21/60,2)*J21*Q21*0.01,"--") -> 1582.711656 | S21: =IF(O21="RP",ROUND(N21/60,2)*J21*Q21*0.01*P21/100,"--") -> -- | T21: =IF(O21="F",J21*Q21,"--") -> -- | U21: =IF(AND(N21>10,O21="F"),J21*Q21*IF(N21>180,3,ROUND((N21)/60,2)),"--") -> -- | V21: =IF(AND(O21="F",N21>180),(ROUND(N21/60,2)-3)*J21*Q21*0.1,"--") -> -- | W21: =IF(O21="R",J21*Q21*P21/100,"--") -> -- | X21: =IF(AND(N21>10,O21="R"),Q21*J21*P21/100*IF(N21>180,3,ROUND((N21)/60,2)),"--") -> -- | Y21: =IF(AND(O21="R",N21>180),(ROUND(N21/60,2)-3)*J21*Q21*0.1*P21/100,"--") -> -- | Z21: =IF(O21="RF",ROUND(N21/60,2)*J21*Q21*0.1,"--") -> -- | AA21: =IF(O21="RR",ROUND(N21/60,2)*J21*Q21*0.1*P21/100,"--") -> -- | AB21: SI | AC21: =IF(F21="","",SUM(R21:AA21)*IF(AB21="SI",1,2)) -> 1582.711656
C22: 2 | D22: 298624 | E22: 1440 | F22: PIGUE - TORNQUIST | G22: 132 | H22: 55 | I22: C | J22: 206.514 | K22: 2016-02-03T08:38:00 | L22: 2016-02-05T17:14:00 | M22: 56.6 | N22: 3396 | O22: P | P22: 0,000 | Q22: 10 | R22: 1168.86924 | S22: -- | T22: -- | U22: -- | V22: -- | W22: -- | X22: -- | Y22: -- | Z22: -- | AA22: -- | AB22: SI | AC22: 1168.86924
C23: 3 | D23: 298634 | E23: 3797 | F23: S. A. ARECO - LUJAN | G23: 66 | H23: 49.79999924 | I23: C | J23: 186.9890371 | K23: 2016-02-05T08:08:00 | L23: 2016-02-05T14:08:00 | M23: 6 | N23: 360 | O23: P | P23: 0,000 | Q23: 10 | R23: 112.1934223 | S23: -- | T23: -- | U23: -- | V23: -- | W23: -- | X23: -- | Y23: -- | Z23: -- | AA23: -- | AB23: SI | AC23: 112.1934223
C24: 4 | D24: 298635 | E24: 1525 | F24: MAR DEL PLATA - MIRAMAR | G24: 132 | H24: 39.29000092 | I24: C | J24: 147.5260954 | K24: 2016-02-05T20:38:00 | L24: 2016-02-06T00:56:00 | M24: 4.3 | N24: 258 | O24: F | P24: 0,000 | Q24: 10 | R24: -- | S24: -- | T24: 1475.260954 | U24: 4425.782863 | V24: 191.7839241 | W24: -- | X24: -- | Y24: -- | Z24: -- | AA24: -- | AB24: SI | AC24: 6092.827742
C25: 5 | D25: 298636 | E25: 1410 | F25: MERCEDES B.A. - LUJAN | G25: 132 | H25: 41.29999924 | I25: B | J25: 155.0732371 | K25: 2016-02-06T06:32:00 | L25: 2016-02-06T08:50:00 | M25: 2.3 | N25: 138 | O25: P | P25: 0,000 | Q25: 50 | R25: 178.3342227 | S25: -- | T25: -- | U25: -- | V25: -- | W25: -- | X25: -- | Y25: -- | Z25: -- | AA25: -- | AB25: SI | AC25: 178.3342227
C26: 6 | D26: 298645 | E26: 1515 | F26: GONZALEZ CHAVEZ - TRES ARROYOS | G26: 132 | H26: 40.22000122 | I26: C | J26: 151.0180606 | K26: 2016-02-07T03:05:00 | L26: 2016-02-07T04:15:00 | M26: 1.166666667 | N26: 70 | O26: F | P26: 0,000 | Q26: 10 | R26: -- | S26: -- | T26: 1510.180606 | U26: 1766.911309 | V26: -- | W26: -- | X26: -- | Y26: -- | Z26: -- | AA26: -- | AB26: SI | AC26: 3277.091915
C27: 7 | D27: 298648 | E27: 1434 | F27: 9 DE JULIO - BRAGADO | G27: 66 | H27: 60.93999863 | I27: C | J27: 228.8175068 | K27: 2016-02-07T14:05:00 | L27: 2016-02-07T19:02:00 | M27: 4.95 | N27: 297 | O27: F | P27: 0,000 | Q27: 10 | R27: -- | S27: -- | T27: 2288.175068 | U27: 6864.525205 | V27: 446.1941383 | W27: -- | X27: -- | Y27: -- | Z27: -- | AA27: -- | AB27: SI | AC27: 9598.894412
C28: 8 | D28: 298835 | E28: 1401 | F28: HENDERSON - CNEL. SUAREZ | G28: 132 | H28: 126.9000015 | I28: C | J28: 476.4841257 | K28: 2016-02-10T09:06:00 | L28: 2016-02-10T14:12:00 | M28: 5.1 | N28: 306 | O28: P | P28: 0,000 | Q28: 10 | R28: 243.0069041 | S28: -- | T28: -- | U28: -- | V28: -- | W28: -- | X28: -- | Y28: -- | Z28: -- | AA28: -- | AB28: SI | AC28: 243.0069041
C29: 9 | D29: 298836 | E29: 1532 | F29: BAHIA BLANCA - P. LURO | G29: 132 | H29: 141 | I29: B | J29: 529.4268 | K29: 2016-02-10T10:00:00 | L29: 2016-02-10T12:53:00 | M29: 2.883333333 | N29: 173 | O29: P | P29: 0,000 | Q29: 50 | R29: 762.374592 | S29: -- | T29: -- | U29: -- | V29: -- | W29: -- | X29: -- | Y29: -- | Z29: -- | AA29: -- | AB29: SI | AC29: 762.374592
C32: 12 | D32: 298855 | E32: 2621 | F32: LUJAN - MORÓN 2 | G32: 132 | H32: 38.29 | I32: A | J32: 143.771292 | K32: 2016-02-12T12:00:00 | L32: 2016-02-12T16:40:00 | M32: 4.666666667 | N32: 280 | O32: F | P32: 0,000 | Q32: 150 | R32: -- | S32: -- | T32: 21565.6938 | U32: 64697.0814 | V32: 3601.470865 | W32: -- | X32: -- | Y32: -- | Z32: -- | AA32: -- | AB32: SI | AC32: 89864.24606
C33: 13 | D33: 299397 | E33: 1446 | F33: OLAVARRIA - HENDERSON | G33: 132 | H33: 139.8999939 | I33: C | J33: 525.2964971 | K33: 2016-02-15T09:24:00 | L33: 2016-02-15T13:55:00 | M33: 4.516666667 | N33: 271 | O33: P | P33: 0,000 | Q33: 10 | R33: 237.4340167 | S33: -- | T33: -- | U33: -- | V33: -- | W33: -- | X33: -- | Y33: -- | Z33: -- | AA33: -- | AB33: SI | AC33: 237.4340167
C34: 14 | D34: 299398 | E34: 1547 | F34: URBANA BB - C. PIEDRABUENA | G34: 132 | H34: 1.899999976 | I34: C | J34: 93.87 | K34: 2016-02-16T07:52:00 | L34: 2016-02-16T14:33:00 | M34: 6.683333333 | N34: 401 | O34: P | P34: 0,000 | Q34: 10 | R34: 62.70516 | S34: -- | T34: -- | U34: -- | V34: -- | W34: -- | X34: -- | Y34: -- | Z34: -- | AA34: -- | AB34: SI | AC34: 62.70516
C35: 15 | D35: 299402 | E35: 1450 | F35: OLAVARRIA - AZUL | G35: 132 | H35: 51.40000153 | I35: C | J35: 192.9967257 | K35: 2016-02-16T21:58:00 | L35: 2016-02-17T00:58:00 | M35: 3 | N35: 180 | O35: F | P35: 0,000 | Q35: 10 | R35: -- | S35: -- | T35: 1929.967257 | U35: 5789.901772 | V35: -- | W35: -- | X35: -- | Y35: -- | Z35: -- | AA35: -- | AB35: SI | AC35: 7719.869029
C36: 16 | D36: 299403 | E36: 1515 | F36: GONZALEZ CHAVEZ - TRES ARROYOS | G36: 132 | H36: 40.22000122 | I36: C | J36: 151.0180606 | K36: 2016-02-17T06:08:00 | L36: 2016-02-17T11:16:00 | M36: 5.133333333 | N36: 308 | O36: P | P36: 0,000 | Q36: 10 | R36: 77.47226508 | S36: -- | T36: -- | U36: -- | V36: -- | W36: -- | X36: -- | Y36: -- | Z36: -- | AA36: -- | AB36: SI | AC36: 77.47226508
C37: 17 | D37: 299404 | E37: 1547 | F37: URBANA BB - C. PIEDRABUENA | G37: 132 | H37: 1.899999976 | I37: C | J37: 93.87 | K37: 2016-02-17T07:58:00 | L37: 2016-02-17T14:14:00 | M37: 6.266666667 | N37: 376 | O37: P | P37: 0,000 | Q37: 10 | R37: 58.85649 | S37: -- | T37: -- | U37: -- | V37: -- | W37: -- | X37: -- | Y37: -- | Z37: -- | AA37: -- | AB37: SI | AC37: 58.85649
C38: 18 | D38: 299405 | E38: 4888 | F38: ZARATE - CAMPANA III | G38: 132 | H38: 16.8 | I38: C | J38: 93.87 | K38: 2016-02-17T09:52:00 | L38: 2016-02-17T10:24:00 | M38: 0.5333333333 | N38: 32 | O38: P | P38: 0,000 | Q38: 10 | R38: 4.97511 | S38: -- | T38: -- | U38: -- | V38: -- | W38: -- | X38: -- | Y38: -- | Z38: -- | AA38: -- | AB38: SI | AC38: 4.97511
C39: 19 | D39: 299411 | E39: 1546 | F39: PETROQ. BAHIA BLANCA - URBANA BB | G39: 132 | H39: 3.200000048 | I39: C | J39: 93.87 | K39: 2016-02-18T08:18:00 | L39: 2016-02-18T13:41:00 | M39: 5.383333333 | N39: 323 | O39: P | P39: 0,000 | Q39: 10 | R39: 50.50206 | S39: -- | T39: -- | U39: -- | V39: -- | W39: -- | X39: -- | Y39: -- | Z39: -- | AA39: -- | AB39: SI | AC39: 50.50206
C42: (²) | D42: P - PROGRAMADA ; F - FORZADA | R42: =SUM(R19:R41) -> 4539.435139 | S42: 0 | T42: 28769.27769 | U42: 83544.20255 | V42: 4239.448927 | W42: 0 | X42: 0 | Y42: 0 | Z42: 0 | AA42: 0 | AC42: =ROUND(SUM(AC19:AC41),2) -> 121092.36

Sheet LI-02 (2)
B2: ='TOT-0216'!B2 -> ANEXO III al Memorándum D.T.E.E. N° 243 / 2017
A4: ENTE NACIONAL REGULADOR
A5: DE LA ELECTRICIDAD
F8: SISTEMA DE TRANSPORTE DE ENERGÍA ELÉCTRICA POR DISTRIBUCIÓN TRONCAL - TRANSBA S.A.
F10: 1.- LÍNEAS
B12: =+'TOT-0216'!B14 -> Desde el 01 al 29 de Febrero de 2016
F14: $/100 km-h : LÍNEAS 220 kV | G14: 392.94 | L14: FACTOR DE PENALIZACIÓN (CLASE A) K= | M14: =150*'TOT-0216'!B13 -> 150 | N14: =IF(M14=150," ",IF(M14=300,"Coeficiente duplicado por tasa de falla >4 Sal. x año/100 km.","REVISAR COEFICIENTE")) -> 
F15: $/100 km-h : LÍNEAS 132 kV | G15: 375.48 | L15: FACTOR DE PENALIZACIÓN (CLASE B) K= | M15: =50*'TOT-0216'!B13 -> 50 | N15: =IF(M15=50," ",IF(M15=100,"Coeficiente duplicado por tasa de falla >4 Sal. x año/100 km.","REVISAR COEFICIENTE")) -> 
F16: $/100 km-h : LÍNEAS 66 kV | G16: 375.48 | L16: FACTOR DE PENALIZACIÓN (CLASE C) K= | M16: =10*'TOT-0216'!B13 -> 10 | N16: =IF(M16=10," ",IF(M16=20,"Coeficiente duplicado por tasa de falla >4 Sal. x año/100 km.","REVISAR COEFICIENTE")) -> 
C17: 3 | D17: 4 | E17: 5 | F17: 6 | G17: 7 | H17: 8 | I17: 9 | J17: 10 | K17: 11 | L17: 12 | M17: 13 | N17: 14 | O17: 15 | P17: 16 | Q17: 17 | R17: 18 | S17: 19 | T17: 20 | U17: 21 | V17: 22 | W17: 23 | X17: 24 | Y17: 25 | Z17: 26 | AA17: 27 | AB17: 28 | AC17: 29
C18: N° | D18: INDISP | E18: ID EQUIPO | F18: LÍNEAS | G18: U [kV] | H18: Long. [km] | I18: CLASE | J18: $/h | K18: Salida | L18: Entrada | M18: Hs. Indisp | N18: Minutos Indisp. | O18: Tipo Sal.(²) | P18: C.R. % | Q18: K (CLASE) | R18: PENALIZ. PROGRAM. | S18: REDUCC. PROGRAM. | T18: PENALIZACIÓN FORZADA Por Salida 1ras. 3 hs. hs. Restantes | W18: REDUCC. FORZADA Por Salida 1ras. 3 hs. hs. Restantes | Z18: RESTANTE FORZADA | AA18: REDUCC. RESTANTE | AB18: Informó en Térm. | AC18: TOTAL PENALIZAC.
AC19: ='LI-02 (1)'!AC42 -> 121092.36
C21: 20 | D21: 299414 | E21: 1401 | F21: HENDERSON - CNEL. SUAREZ | G21: 132 | H21: 126.9000015 | I21: C | J21: =IF(G21=220,$G$14,IF(G21=132,$G$15,$G$16))*IF(H21>25,H21,25)/100 -> 476.4841257 | K21: 2016-02-18T09:12:00 | L21: 2016-02-18T12:05:00 | M21: =IF(F21="","",(L21-K21)*24) -> 2.883333333 | N21: =IF(F21="","",ROUND((L21-K21)*24*60,0)) -> 173 | O21: P | P21: 0,000 | Q21: =IF(I21="A",$M$14,IF(I21="B",$M$15,$M$16)) -> 10 | R21: =IF(O21="P",ROUND(N21/60,2)*J21*Q21*0.01,"--") -> 137.2274282 | S21: =IF(O21="RP",ROUND(N21/60,2)*J21*Q21*0.01*P21/100,"--") -> -- | T21: =IF(O21="F",J21*Q21,"--") -> -- | U21: =IF(AND(N21>10,O21="F"),J21*Q21*IF(N21>180,3,ROUND((N21)/60,2)),"--") -> -- | V21: =IF(AND(O21="F",N21>180),(ROUND(N21/60,2)-3)*J21*Q21*0.1,"--") -> -- | W21: =IF(O21="R",J21*Q21*P21/100,"--") -> -- | X21: =IF(AND(N21>10,O21="R"),Q21*J21*P21/100*IF(N21>180,3,ROUND((N21)/60,2)),"--") -> -- | Y21: =IF(AND(O21="R",N21>180),(ROUND(N21/60,2)-3)*J21*Q21*0.1*P21/100,"--") -> -- | Z21: =IF(O21="RF",ROUND(N21/60,2)*J21*Q21*0.1,"--") -> -- | AA21: =IF(O21="RR",ROUND(N21/60,2)*J21*Q21*0.1*P21/100,"--") -> -- | AB21: SI | AC21: =IF(F21="","",SUM(R21:AA21)*IF(AB21="SI",1,2)) -> 137.2274282
C22: 21 | D22: 299416 | E22: 1434 | F22: 9 DE JULIO - BRAGADO | G22: 66 | H22: 60.93999863 | I22: C | J22: 228.8175068 | K22: 2016-02-18T15:13:00 | L22: 2016-02-18T19:21:00 | M22: 4.133333333 | N22: 248 | O22: F | P22: 0,000 | Q22: 10 | R22: -- | S22: -- | T22: 2288.175068 | U22: 6864.525205 | V22: 258.5637827 | W22: -- | X22: -- | Y22: -- | Z22: -- | AA22: -- | AB22: SI | AC22: 9411.264056
C23: 22 | D23: 299417 | E23: 1537 | F23: CNEL. SUAREZ - PIGUE | G23: 132 | H23: 47.59999847 | I23: C | J23: 178.7284743 | K23: 2016-02-18T17:58:00 | L23: 2016-02-19T03:05:00 | M23: 9.116666667 | N23: 547 | O23: F | P23: 0,000 | Q23: 10 | R23: -- | S23: -- | T23: 1787.284743 | U23: 5361.854228 | V23: 1093.818263 | W23: -- | X23: -- | Y23: -- | Z23: -- | AA23: -- | AB23: SI | AC23: 8242.957233
C24: 23 | D24: 299419 | E24: 3797 | F24: S. A. ARECO - LUJAN | G24: 66 | H24: 49.79999924 | I24: C | J24: 186.9890371 | K24: 2016-02-19T02:56:00 | L24: 2016-02-19T17:13:00 | M24: 14.28333333 | N24: 857 | O24: F | P24: 0,000 | Q24: 10 | R24: -- | S24: -- | T24: 1869.890371 | U24: 5609.671114 | V24: 2109.236339 | W24: -- | X24: -- | Y24: -- | Z24: -- | AA24: -- | AB24: SI | AC24: 9588.797824
C25: 24 | D25: 299420 | E25: 1546 | F25: PETROQ. BAHIA BLANCA - URBANA BB | G25: 132 | H25: 3.200000048 | I25: C | J25: 93.87 | K25: 2016-02-19T08:22:00 | L25: 2016-02-19T16:03:00 | M25: 7.683333333 | N25: 461 | O25: P | P25: 0,000 | Q25: 10 | R25: 72.09216 | S25: -- | T25: -- | U25: -- | V25: -- | W25: -- | X25: -- | Y25: -- | Z25: -- | AA25: -- | AB25: SI | AC25: 72.09216
C26: 25 | D26: 299427 | E26: 1442 | F26: MAR DE AJO - PINAMAR | G26: 132 | H26: 46.40000153 | I26: C | J26: 174.2227257 | K26: 2016-02-20T07:50:00 | L26: 2016-02-20T09:35:00 | M26: 1.75 | N26: 105 | O26: P | P26: 0,000 | Q26: 10 | R26: 30.488977 | S26: -- | T26: -- | U26: -- | V26: -- | W26: -- | X26: -- | Y26: -- | Z26: -- | AA26: -- | AB26: SI | AC26: 30.488977
C27: 26 | D27: 299429 | E27: 3556 | F27: N. CAMPANA - CORCEMAR 1 | G27: 132 | H27: 5 | I27: C | J27: 93.87 | K27: 2016-02-21T08:07:00 | L27: 2016-02-21T17:18:00 | M27: 9.183333333 | N27: 551 | O27: P | P27: 0,000 | Q27: 10 | R27: 86.17266 | S27: -- | T27: -- | U27: -- | V27: -- | W27: -- | X27: -- | Y27: -- | Z27: -- | AA27: -- | AB27: SI | AC27: 86.17266
C28: 27 | D28: 299706 | E28: 1456 | F28: LAPRIDA - PRINGLES | G28: 132 | H28: 71.5 | I28: C | J28: 268.4682 | K28: 2016-02-23T07:54:00 | L28: 2016-02-23T16:09:00 | M28: 8.25 | N28: 495 | O28: P | P28: 0,000 | Q28: 10 | R28: 221.486265 | S28: -- | T28: -- | U28: -- | V28: -- | W28: -- | X28: -- | Y28: -- | Z28: -- | AA28: -- | AB28: SI | AC28: 221.486265
C29: 28 | D29: 299707 | E29: 4889 | F29: CAMPANA III - MATHEU | G29: 132 | H29: 21 | I29: C | J29: 93.87 | K29: 2016-02-23T08:28:00 | L29: 2016-02-23T12:01:00 | M29: 3.55 | N29: 213 | O29: P | P29: 0,000 | Q29: 10 | R29: 33.32385 | S29: -- | T29: -- | U29: -- | V29: -- | W29: -- | X29: -- | Y29: -- | Z29: -- | AA29: -- | AB29: SI | AC29: 33.32385
C30: 29 | D30: 299712 | E30: 1456 | F30: LAPRIDA - PRINGLES | G30: 132 | H30: 71.5 | I30: C | J30: 268.4682 | K30: 2016-02-24T07:41:00 | L30: 2016-02-24T16:29:00 | M30: 8.8 | N30: 528 | O30: P | P30: 0,000 | Q30: 10 | R30: 236.252016 | S30: -- | T30: -- | U30: -- | V30: -- | W30: -- | X30: -- | Y30: -- | Z30: -- | AA30: -- | AB30: SI | AC30: 236.252016
C31: 30 | D31: 299719 | E31: 1456 | F31: LAPRIDA - PRINGLES | G31: 132 | H31: 71.5 | I31: C | J31: 268.4682 | K31: 2016-02-25T07:55:00 | L31: 2016-02-25T16:24:00 | M31: 8.483333333 | N31: 509 | O31: P | P31: 0,000 | Q31: 10 | R31: 227.6610336 | S31: -- | T31: -- | U31: -- | V31: -- | W31: -- | X31: -- | Y31: -- | Z31: -- | AA31: -- | AB31: SI | AC31: 227.6610336
C32: 31 | D32: 299721 | E32: 1444 | F32: GRAL. MADARIAGA - LAS ARMAS | G32: 132 | H32: 64.40000153 | I32: C | J32: 241.8091257 | K32: 2016-02-26T07:34:00 | L32: 2016-02-26T08:48:00 | M32: 1.233333333 | N32: 74 | O32: P | P32: 0,000 | Q32: 10 | R32: 29.74252246 | S32: -- | T32: -- | U32: -- | V32: -- | W32: -- | X32: -- | Y32: -- | Z32: -- | AA32: -- | AB32: SI | AC32: 29.74252246
C33: 32 | D33: 299722 | E33: 1456 | F33: LAPRIDA - PRINGLES | G33: 132 | H33: 71.5 | I33: C | J33: 268.4682 | K33: 2016-02-26T07:51:00 | L33: 2016-02-26T16:29:00 | M33: 8.633333333 | N33: 518 | O33: P | P33: 0,000 | Q33: 10 | R33: 231.6880566 | S33: -- | T33: -- | U33: -- | V33: -- | W33: -- | X33: -- | Y33: -- | Z33: -- | AA33: -- | AB33: SI | AC33: 231.6880566
C34: 33 | D34: 299726 | E34: 5684 | F34: CORCEMAR - TOYOTA 1 | G34: 132 | H34: 2.9 | I34: C | J34: 93.87 | K34: 2016-02-28T07:50:00 | L34: 2016-02-28T15:43:00 | M34: 7.883333333 | N34: 473 | O34: P | P34: 0,000 | Q34: 10 | R34: 73.96956 | S34: -- | T34: -- | U34: -- | V34: -- | W34: -- | X34: -- | Y34: -- | Z34: -- | AA34: -- | AB34: SI | AC34: 73.96956
C35: 34 | D35: 299728 | E35: 1999 | F35: SAN NICOLÁS - VILLA CONSTITUCIÓN IND. | G35: 132 | H35: 14.69999981 | I35: C | J35: 93.87 | K35: 2016-02-29T07:20:00 | L35: 2016-02-29T17:08:00 | M35: 9.8 | N35: 588 | O35: F | P35: 0,000 | Q35: 10 | R35: -- | S35: -- | T35: 938.7 | U35: 2816.1 | V35: 638.316 | W35: -- | X35: -- | Y35: -- | Z35: -- | AA35: -- | AB35: SI | AC35: 4393.116
J36: 93.87 | P36: =IF(F36="","","--") ->  | Q36: =IF(I36="A",$M$14,IF(I36="B",$M$15,$M$16)) -> 10 | R36: =IF(O36="P",ROUND(N36/60,2)*J36*Q36*0.01,"--") -> -- | S36: =IF(O36="RP",ROUND(N36/60,2)*J36*Q36*0.01*P36/100,"--") -> -- | T36: =IF(O36="F",J36*Q36,"--") -> -- | U36: =IF(AND(N36>10,O36="F"),J36*Q36*IF(N36>180,3,ROUND((N36)/60,2)),"--") -> -- | V36: =IF(AND(O36="F",N36>180),(ROUND(N36/60,2)-3)*J36*Q36*0.1,"--") -> -- | W36: =IF(O36="R",J36*Q36*P36/100,"--") -> -- | X36: =IF(AND(N36>10,O36="R"),Q36*J36*P36/100*IF(N36>180,3,ROUND((N36)/60,2)),"--") -> -- | Y36: =IF(AND(O36="R",N36>180),(ROUND(N36/60,2)-3)*J36*Q36*0.1*P36/100,"--") -> -- | Z36: =IF(O36="RF",ROUND(N36/60,2)*J36*Q36*0.1,"--") -> -- | AA36: =IF(O36="RR",ROUND(N36/60,2)*J36*Q36*0.1*P36/100,"--") -> -- | AB36: =IF(F36="","","SI") -> 
J37: 93.87 | Q37: 10 | R37: -- | S37: -- | T37: -- | U37: -- | V37: -- | W37: -- | X37: -- | Y37: -- | Z37: -- | AA37: --
J38: 93.87 | Q38: 10 | R38: -- | S38: -- | T38: -- | U38: -- | V38: -- | W38: -- | X38: -- | Y38: -- | Z38: -- | AA38: --
J39: 93.87 | Q39: 10 | R39: -- | S39: -- | T39: -- | U39: -- | V39: -- | W39: -- | X39: -- | Y39: -- | Z39: -- | AA39: --
J40: 93.87 | P40: =IF(F40="","","--") ->  | Q40: 10 | R40: -- | S40: -- | T40: -- | U40: -- | V40: -- | W40: -- | X40: -- | Y40: -- | Z40: -- | AA40: -- | AB40: =IF(F40="","","SI") -> 
C42: (²) | D42: P - PROGRAMADA ; F - FORZADA | R42: =SUM(R19:R41) -> 1380.104529 | S42: 0 | T42: 6884.050182 | U42: 20652.15055 | V42: 4099.934384 | W42: 0 | X42: 0 | Y42: 0 | Z42: 0 | AA42: 0 | AC42: =ROUND(SUM(AC19:AC41),2) -> 154108.6

Sheet T-02 (1)
B2: ='TOT-0216'!B2 -> ANEXO III al Memorándum D.T.E.E. N° 243 / 2017
A4: ENTE NACIONAL REGULADOR
A5: DE LA ELECTRICIDAD
F8: SISTEMA DE TRANSPORTE DE ENERGÍA ELÉCTRICA POR DISTRIBUCIÓN TRONCAL - TRANSBA S.A.
F10: 2.- CONEXIÓN
F12: 2.1.- Transformación
B14: ='TOT-0216'!B14 -> Desde el 01 al 29 de Febrero de 2016
F16: Por Transformador por MVA $ = | I16: 1.31
F17: Coeficiente de penalización por salida forzada = | I17: =60*'TOT-0216'!B13 -> 60 | K17: =IF(I17=60," ",IF(I17=120," Coeficiente duplicado por tasa de falla >4 Sal. x año/100 km."," REVISAR COEFICIENTE")) -> 
C18: 3 | D18: 4 | E18: 5 | F18: 6 | G18: 7 | H18: 8 | I18: 9 | J18: 10 | K18: 11 | L18: 12 | M18: 13 | N18: 14 | O18: 15 | P18: 16 | Q18: 17 | R18: 18 | S18: 19 | T18: 20 | U18: 21 | V18: 22 | W18: 23 | X18: 24 | Y18: 25 | Z18: 26 | AA18: 27 | AB18: 28 | AC18: 29
C19: N° | D19: INDISP | E19: ID EQUIPO | F19: ESTACIÓN TRANSFORMADORA | G19: EQUIPO | H19: POT. [MVA] | I19: U [kV] | J19: $/h | K19: Salida | L19: Entrada | M19: Hs Indisp. | N19: Minutos. Indisp. | O19: Tipo Sal.(²) | P19: AUT. | Q19: C.R. % | R19: E.N.S. | S19: K (P y ENS) | T19: PENALIZ. PROGRAM. | U19: REDUCC. PROGRAM. | V19: PENALIZACIÓN FORZADA Por Salida hs. Restantes | X19: REDUCC. FORZADA Por Salida hs. Restantes | Z19: RESTANTE FORZADA | AA19: REDUCC. RESTANTE | AB19: Informó en Térm. | AC19: TOTAL PENALIZAC.
C22: 35 | D22: 298617 | E22: 2297 | F22: OLAVARRIA VIEJA | G22: T2OA | H22: 30 | I22: 132/33/13,2 | J22: =H22*$I$16 -> 39.3 | K22: 2016-02-01T07:56:00 | L22: 2016-02-01T14:11:00 | M22: =IF(F22="","",(L22-K22)*24) -> 6.25 | N22: =IF(F22="","",ROUND((L22-K22)*24*60,0)) -> 375 | O22: P | P22: =IF(F22="","",IF(OR(O22="P",O22="RP"),"--","NO")) -> -- | Q22: 0,000 | R22: NO | S22: =$I$17*IF(OR(O22="P",O22="RP"),0.1,1)*IF(R22="SI",1,0.1) -> 0.6 | T22: =IF(O22="P",J22*S22*ROUND(N22/60,2),"--") -> 147.375 | U22: =IF(O22="RP",J22*S22*ROUND(N22/60,2)*Q22/100,"--") -> -- | V22: =IF(AND(O22="F",P22="NO"),J22*S22,"--") -> -- | W22: =IF(O22="F",J22*S22*ROUND(N22/60,2),"--") -> -- | X22: =IF(AND(O22="R",P22="NO"),J22*S22*Q22/100,"--") -> -- | Y22: =IF(O22="R",J22*S22*ROUND(N22/60,2)*Q22/100,"--") -> -- | Z22: =IF(O22="RF",J22*S22*ROUND(N22/60,2),"--") -> -- | AA22: =IF(O22="RR",J22*S22*ROUND(N22/60,2)*Q22/100,"--") -> -- | AB22: =IF(F22="","","SI") -> SI | AC22: =IF(F22="","",SUM(T22:AA22)*IF(AB22="SI",1,2)*IF(AND(Q22<>"0,000",O22="RF"),Q22/100,1)) -> 147.375
C23: 36 | D23: 298619 | E23: 2296 | F23: OLAVARRIA VIEJA | G23: T1OA | H23: 30 | I23: 132/33/13,2 | J23: 39.3 | K23: 2016-02-02T07:59:00 | L23: 2016-02-02T12:44:00 | M23: 4.75 | N23: 285 | O23: P | P23: -- | Q23: 0,000 | R23: =IF(F23="","","NO") -> NO | S23: 0.6 | T23: 112.005 | U23: -- | V23: -- | W23: -- | X23: -- | Y23: -- | Z23: -- | AA23: -- | AB23: SI | AC23: 112.005
C24: 37 | D24: 298622 | E24: 2649 | F24: TORNQUIST | G24: TRAFO 1 | H24: 15 | I24: 132/33/13,2 | J24: 19.65 | K24: 2016-02-03T08:03:00 | L24: 2016-02-03T16:55:00 | M24: 8.866666667 | N24: 532 | O24: P | P24: -- | Q24: 0,000 | R24: NO | S24: 0.6 | T24: 104.5773 | U24: -- | V24: -- | W24: -- | X24: -- | Y24: -- | Z24: -- | AA24: -- | AB24: SI | AC24: 104.5773
C25: 38 | D25: 298625 | E25: 2663 | F25: ARRECIFES | G25: TRAFO 5 | H25: 5 | I25: 66/33 | J25: 6.55 | K25: 2016-02-03T09:55:00 | L25: 2016-02-03T14:51:00 | M25: 4.933333333 | N25: 296 | O25: P | P25: -- | Q25: 0,000 | R25: NO | S25: 0.6 | T25: 19.3749 | U25: -- | V25: -- | W25: -- | X25: -- | Y25: -- | Z25: -- | AA25: -- | AB25: SI | AC25: 19.3749
C26: 39 | D26: 298627 | E26: 2404 | F26: LAS ARMAS | G26: TRAFO 1 | H26: 10 | I26: 132/33/13,2 | J26: 13.1 | K26: 2016-02-04T04:15:00 | L26: 2016-02-04T07:31:00 | M26: 3.266666667 | N26: 196 | O26: P | P26: -- | Q26: 0,000 | R26: NO | S26: 0.6 | T26: 25.7022 | U26: -- | V26: -- | W26: -- | X26: -- | Y26: -- | Z26: -- | AA26: -- | AB26: SI | AC26: 25.7022
C27: 40 | D27: 298628 | E27: 2663 | F27: ARRECIFES | G27: TRAFO 5 | H27: 5 | I27: 66/33 | J27: 6.55 | K27: 2016-02-04T08:32:00 | L27: 2016-02-04T12:37:00 | M27: 4.083333333 | N27: 245 | O27: P | P27: -- | Q27: 0,000 | R27: NO | S27: 0.6 | T27: 16.0344 | U27: -- | V27: -- | W27: -- | X27: -- | Y27: -- | Z27: -- | AA27: -- | AB27: SI | AC27: 16.0344
C28: 41 | D28: 298629 | E28: 2468 | F28: PINAMAR | G28: TRAFO 1 | H28: 15 | I28: 132/33/13,2 | J28: 19.65 | K28: 2016-02-04T15:56:00 | L28: 2016-02-04T16:48:00 | M28: 0.8666666665 | N28: 52 | O28: F | P28: NO | Q28: 0,000 | R28: SI | S28: 60 | T28: -- | U28: -- | V28: 1179 | W28: 1025.73 | X28: -- | Y28: -- | Z28: -- | AA28: -- | AB28: SI | AC28: 2204.73
C29: 41b | D29: 298629 | E29: 2468 | F29: PINAMAR | G29: TRAFO 1 | H29: 15 | I29: 132/33/13,2 | J29: =H29*$I$16 -> 19.65 | K29: 2016-02-04T16:48:00 | L29: 2016-02-04T18:34:00 | M29: =IF(F29="","",(L29-K29)*24) -> 1.766666667 | N29: =IF(F29="","",ROUND((L29-K29)*24*60,0)) -> 106 | O29: RF | P29: =IF(F29="","",IF(OR(O29="P",O29="RP"),"--","NO")) -> NO | Q29: 0,000 | R29: NO | S29: =$I$17*IF(OR(O29="P",O29="RP"),0.1,1)*IF(R29="SI",1,0.1) -> 6 | T29: =IF(O29="P",J29*S29*ROUND(N29/60,2),"--") -> -- | U29: =IF(O29="RP",J29*S29*ROUND(N29/60,2)*Q29/100,"--") -> -- | V29: =IF(AND(O29="F",P29="NO"),J29*S29,"--") -> -- | W29: =IF(O29="F",J29*S29*ROUND(N29/60,2),"--") -> -- | X29: =IF(AND(O29="R",P29="NO"),J29*S29*Q29/100,"--") -> -- | Y29: =IF(O29="R",J29*S29*ROUND(N29/60,2)*Q29/100,"--") -> -- | Z29: =IF(O29="RF",J29*S29*ROUND(N29/60,2),"--") -> 208.683 | AA29: =IF(O29="RR",J29*S29*ROUND(N29/60,2)*Q29/100,"--") -> -- | AB29: =IF(F29="","","SI") -> SI | AC29: =IF(F29="","",SUM(T29:AA29)*IF(AB29="SI",1,2)*IF(AND(Q29<>"0,000",O29="RF"),Q29/100,1)) -> 208.683
C30: 42 | D30: 298850 | E30: 3727 | F30: TRENQUE LAUQUEN | G30: TRAFO 3 | H30: 30 | I30: 132/33/13,2 | J30: 39.3 | K30: 2016-02-11T07:20:00 | L30: 2016-02-11T08:34:00 | M30: 1.233333333 | N30: 74 | O30: R | P30: NO | Q30: 60 | R30: SI | S30: 60 | T30: -- | U30: -- | V30: -- | W30: -- | X30: 1414.8 | Y30: 1740.204 | Z30: -- | AA30: -- | AB30: SI | AC30: 3155.004
C31: 42b | D31: 298850 | E31: 3727 | F31: TRENQUE LAUQUEN | G31: TRAFO 3 | H31: 30 | I31: 132/33/13,2 | J31: =H31*$I$16 -> 39.3 | K31: 2016-02-11T08:34:00 | L31: 2016-02-11T15:01:00 | M31: =IF(F31="","",(L31-K31)*24) -> 6.45 | N31: =IF(F31="","",ROUND((L31-K31)*24*60,0)) -> 387 | O31: RR | P31: =IF(F31="","",IF(OR(O31="P",O31="RP"),"--","NO")) -> NO | Q31: 60 | R31: NO | S31: =$I$17*IF(OR(O31="P",O31="RP"),0.1,1)*IF(R31="SI",1,0.1) -> 6 | T31: =IF(O31="P",J31*S31*ROUND(N31/60,2),"--") -> -- | U31: =IF(O31="RP",J31*S31*ROUND(N31/60,2)*Q31/100,"--") -> -- | V31: =IF(AND(O31="F",P31="NO"),J31*S31,"--") -> -- | W31: =IF(O31="F",J31*S31*ROUND(N31/60,2),"--") -> -- | X31: =IF(AND(O31="R",P31="NO"),J31*S31*Q31/100,"--") -> -- | Y31: =IF(O31="R",J31*S31*ROUND(N31/60,2)*Q31/100,"--") -> -- | Z31: =IF(O31="RF",J31*S31*ROUND(N31/60,2),"--") -> -- | AA31: =IF(O31="RR",J31*S31*ROUND(N31/60,2)*Q31/100,"--") -> 912.546 | AB31: =IF(F31="","","SI") -> SI | AC31: =IF(F31="","",SUM(T31:AA31)*IF(AB31="SI",1,2)*IF(AND(Q31<>"0,000",O31="RF"),Q31/100,1)) -> 912.546
C33: 44 | D33: 298923 | E33: 4676 | F33: COLON | G33: TRAFO 1 | H33: 30 | I33: 132/22/13,2 | J33: 39.3 | K33: 2016-02-13T06:15:00 | L33: 2016-02-13T16:50:00 | M33: 10.58333333 | N33: 635 | O33: RP | P33: -- | Q33: 40 | R33: NO | S33: 0.6 | T33: -- | U33: 99.79056 | V33: -- | W33: -- | X33: -- | Y33: -- | Z33: -- | AA33: -- | AB33: SI | AC33: 99.79056
C34: 45 | D34: 298925 | E34: 4280 | F34: TANDIL | G34: TRAFO 3 | H34: 30 | I34: 132/33/13,2 | J34: 39.3 | K34: 2016-02-13T07:50:00 | L34: 2016-02-13T11:00:00 | M34: 3.166666667 | N34: 190 | O34: P | P34: -- | Q34: 0,000 | R34: NO | S34: 0.6 | T34: 74.7486 | U34: -- | V34: -- | W34: -- | X34: -- | Y34: -- | Z34: -- | AA34: -- | AB34: SI | AC34: 74.7486
C35: 46 | D35: 298926 | E35: 5553 | F35: CHACABUCO | G35: TRAFO1 | H35: 30 | I35: 132/33/13,2 | J35: 39.3 | K35: 2016-02-14T07:36:00 | L35: 2016-02-14T18:06:00 | M35: 10.5 | N35: 630 | O35: P | P35: -- | Q35: 0,000 | R35: NO | S35: 0.6 | T35: 247.59 | U35: -- | V35: -- | W35: -- | X35: -- | Y35: -- | Z35: -- | AA35: -- | AB35: SI | AC35: 247.59
C36: 47 | D36: 299399 | E36: 5553 | F36: CHACABUCO | G36: TRAFO1 | H36: 30 | I36: 132/33/13,2 | J36: 39.3 | K36: 2016-02-16T08:06:00 | L36: 2016-02-21T07:27:00 | M36: 119.35 | N36: 7161 | O36: RP | P36: -- | Q36: 40 | R36: NO | S36: 0.6 | T36: -- | U36: 1125.7092 | V36: -- | W36: -- | X36: -- | Y36: -- | Z36: -- | AA36: -- | AB36: SI | AC36: 1125.7092
C37: 48 | D37: 299400 | E37: 2166 | F37: IMPSA | G37: TRAFO 1 | H37: 15 | I37: 132/33/13,2 | J37: 19.65 | K37: 2016-02-16T08:11:00 | L37: 2016-02-16T09:08:00 | M37: 0.9500000001 | N37: 57 | O37: P | P37: -- | Q37: 0,000 | R37: NO | S37: 0.6 | T37: 11.2005 | U37: -- | V37: -- | W37: -- | X37: -- | Y37: -- | Z37: -- | AA37: -- | AB37: SI | AC37: 11.2005
C38: 49 | D38: 299410 | E38: 2387 | F38: AZUL | G38: TRAFO 3 | H38: 15 | I38: 132/33/132,2 | J38: 19.65 | K38: 2016-02-18T08:07:00 | L38: 2016-02-18T13:47:00 | M38: 5.666666667 | N38: 340 | O38: P | P38: -- | Q38: 0,000 | R38: NO | S38: 0.6 | T38: 66.8493 | U38: -- | V38: -- | W38: -- | X38: -- | Y38: -- | Z38: -- | AA38: -- | AB38: SI | AC38: 66.8493
C39: 50 | D39: 299422 | E39: 2387 | F39: AZUL | G39: TRAFO 3 | H39: 15 | I39: 132/33/132,2 | J39: 19.65 | K39: 2016-02-19T08:45:00 | L39: 2016-02-19T14:02:00 | M39: 5.283333333 | N39: 317 | O39: P | P39: -- | Q39: 0,000 | R39: NO | S39: 0.6 | T39: 62.2512 | U39: -- | V39: -- | W39: -- | X39: -- | Y39: -- | Z39: -- | AA39: -- | AB39: SI | AC39: 62.2512
C40: 51 | D40: 299423 | E40: 2056 | F40: SAN PEDRO | G40: TRAFO 2 | H40: 15 | I40: 132/33 | J40: 19.65 | K40: 2016-02-19T09:13:00 | L40: 2016-02-19T10:00:00 | M40: 0.7833333333 | N40: 47 | O40: F | P40: NO | Q40: 0,000 | R40: SI | S40: 60 | T40: -- | U40: -- | V40: 1179 | W40: 919.62 | X40: -- | Y40: -- | Z40: -- | AA40: -- | AB40: SI | AC40: 2098.62
C41: 51b | D41: 299423 | E41: 2056 | F41: SAN PEDRO | G41: TRAFO 2 | H41: 15 | I41: 132/33 | J41: =H41*$I$16 -> 19.65 | K41: 2016-02-19T10:00:00 | L41: 2016-02-26T22:06:00 | M41: =IF(F41="","",(L41-K41)*24) -> 180.1 | N41: =IF(F41="","",ROUND((L41-K41)*24*60,0)) -> 10806 | O41: RF | P41: =IF(F41="","",IF(OR(O41="P",O41="RP"),"--","NO")) -> NO | Q41: 0,000 | R41: NO | S41: =$I$17*IF(OR(O41="P",O41="RP"),0.1,1)*IF(R41="SI",1,0.1) -> 6 | T41: =IF(O41="P",J41*S41*ROUND(N41/60,2),"--") -> -- | U41: =IF(O41="RP",J41*S41*ROUND(N41/60,2)*Q41/100,"--") -> -- | V41: =IF(AND(O41="F",P41="NO"),J41*S41,"--") -> -- | W41: =IF(O41="F",J41*S41*ROUND(N41/60,2),"--") -> -- | X41: =IF(AND(O41="R",P41="NO"),J41*S41*Q41/100,"--") -> -- | Y41: =IF(O41="R",J41*S41*ROUND(N41/60,2)*Q41/100,"--") -> -- | Z41: =IF(O41="RF",J41*S41*ROUND(N41/60,2),"--") -> 21233.79 | AA41: =IF(O41="RR",J41*S41*ROUND(N41/60,2)*Q41/100,"--") -> -- | AB41: =IF(F41="","","SI") -> SI | AC41: =IF(F41="","",SUM(T41:AA41)*IF(AB41="SI",1,2)*IF(AND(Q41<>"0,000",O41="RF"),Q41/100,1)) -> 21233.79
C42: 52 | D42: 299428 | E42: 5553 | F42: CHACABUCO | G42: TRAFO 1 | H42: 30 | I42: 132/33/13,2 | J42: 39.3 | K42: 2016-02-21T07:28:00 | L42: 2016-02-21T19:14:00 | M42: 11.76666667 | N42: 706 | O42: P | P42: -- | Q42: 0,000 | R42: NO | S42: 0.6 | T42: 277.5366 | U42: -- | V42: -- | W42: -- | X42: -- | Y42: -- | Z42: -- | AA42: -- | AB42: SI | AC42: 277.5366
C43: 53 | D43: 299430 | E43: 2287 | F43: CHACABUCO | G43: TRAFO 2 | H43: 15 | I43: 132/33/13,2 | J43: 19.65 | K43: 2016-02-21T19:14:00 | L43: 2016-02-21T19:38:00 | M43: 0.4000000001 | N43: 24 | O43: F | P43: NO | Q43: 0,000 | R43: SI | S43: 60 | T43: -- | U43: -- | V43: 1179 | W43: 471.6 | X43: -- | Y43: -- | Z43: -- | AA43: -- | AB43: SI | AC43: 1650.6
C45: (²) | D45: P - PROGRAMADA ; F - FORZADA ; R - REDUCCIÓN FORZADA ; RP - REDUCCIÓN PROGRAMADA ; RF - RESTANTE FORZADA ; RR - REDUCCIÓN RESTANTE | T45: =SUM(T20:T44) -> 1165.245 | U45: =SUM(U20:U44) -> 1225.49976 | V45: =SUM(V20:V44) -> 3537 | W45: =SUM(W22:W44) -> 2416.95 | X45: =SUM(X20:X44) -> 1414.8 | Y45: =SUM(Y22:Y44) -> 1740.204 | Z45: =SUM(Z20:Z44) -> 21442.473 | AA45: =SUM(AA22:AA44) -> 912.546 | AC45: =ROUND(SUM(AC20:AC44),2) -> 33854.72

Sheet T-02 (2)
B2: ='TOT-0216'!B2 -> ANEXO III al Memorándum D.T.E.E. N° 243 / 2017
A4: ENTE NACIONAL REGULADOR
A5: DE LA ELECTRICIDAD
F8: SISTEMA DE TRANSPORTE DE ENERGÍA ELÉCTRICA POR DISTRIBUCIÓN TRONCAL - TRANSBA S.A.
F10: 2.- CONEXIÓN
F12: 2.1.- Transformación
B14: ='TOT-0216'!B14 -> Desde el 01 al 29 de Febrero de 2016
F16: Por Transformador por MVA $ = | I16: 1.31
F17: Coeficiente de penalización por salida forzada = | I17: =60*'TOT-0216'!B13 -> 60 | K17: =IF(I17=60," ",IF(I17=120," Coeficiente duplicado por tasa de falla >4 Sal. x año/100 km."," REVISAR COEFICIENTE")) -> 
C18: 3 | D18: 4 | E18: 5 | F18: 6 | G18: 7 | H18: 8 | I18: 9 | J18: 10 | K18: 11 | L18: 12 | M18: 13 | N18: 14 | O18: 15 | P18: 16 | Q18: 17 | R18: 18 | S18: 19 | T18: 20 | U18: 21 | V18: 22 | W18: 23 | X18: 24 | Y18: 25 | Z18: 26 | AA18: 27 | AB18: 28 | AC18: 29
C19: N° | D19: INDISP | E19: ID EQUIPO | F19: ESTACIÓN TRANSFORMADORA | G19: EQUIPO | H19: POT. [MVA] | I19: U [kV] | J19: $/h | K19: Salida | L19: Entrada | M19: Hs Indisp. | N19: Minutos. Indisp. | O19: Tipo Sal.(²) | P19: AUT. | Q19: C.R. % | R19: E.N.S. | S19: K (P y ENS) | T19: PENALIZ. PROGRAM. | U19: REDUCC. PROGRAM. | V19: PENALIZACIÓN FORZADA Por Salida hs. Restantes | X19: REDUCC. FORZADA Por Salida hs. Restantes | Z19: RESTANTE FORZADA | AA19: REDUCC. RESTANTE | AB19: Informó en Térm. | AC19: TOTAL PENALIZAC.
AC20: ='T-02 (1)'!AC45 -> 33854.72
C22: 54 | D22: 299443 | E22: 5553 | F22: CHACABUCO | G22: TRAFO1 | H22: 30 | I22: 132/33/13,2 | J22: =H22*$I$16 -> 39.3 | K22: 2016-02-21T19:15:00 | L22: 2016-02-22T13:48:00 | M22: =IF(F22="","",(L22-K22)*24) -> 18.55 | N22: =IF(F22="","",ROUND((L22-K22)*24*60,0)) -> 1113 | O22: R | P22: =IF(F22="","",IF(OR(O22="P",O22="RP"),"--","NO")) -> NO | Q22: 40 | R22: NO | S22: =$I$17*IF(OR(O22="P",O22="RP"),0.1,1)*IF(R22="SI",1,0.1) -> 6 | T22: =IF(O22="P",J22*S22*ROUND(N22/60,2),"--") -> -- | U22: =IF(O22="RP",J22*S22*ROUND(N22/60,2)*Q22/100,"--") -> -- | V22: =IF(AND(O22="F",P22="NO"),J22*S22,"--") -> -- | W22: =IF(O22="F",J22*S22*ROUND(N22/60,2),"--") -> -- | X22: =IF(AND(O22="R",P22="NO"),J22*S22*Q22/100,"--") -> 94.32 | Y22: =IF(O22="R",J22*S22*ROUND(N22/60,2)*Q22/100,"--") -> 1749.636 | Z22: =IF(O22="RF",J22*S22*ROUND(N22/60,2),"--") -> -- | AA22: =IF(O22="RR",J22*S22*ROUND(N22/60,2)*Q22/100,"--") -> -- | AB22: =IF(F22="","","SI") -> SI | AC22: =IF(F22="","",SUM(T22:AA22)*IF(AB22="SI",1,2)*IF(AND(Q22<>"0,000",O22="RF"),Q22/100,1)) -> 1843.956
C23: 55 | D23: 299703 | E23: 2478 | F23: LAS FLORES | G23: TRAFO 2 | H23: 15 | I23: 132/33/13,2 | J23: 19.65 | K23: 2016-02-22T19:33:00 | L23: 2016-02-22T20:45:00 | M23: 1.2 | N23: 72 | O23: F | P23: NO | Q23: 0,000 | R23: SI | S23: 60 | T23: -- | U23: -- | V23: 1179 | W23: 1414.8 | X23: -- | Y23: -- | Z23: -- | AA23: -- | AB23: SI | AC23: =IF(F23="","",SUM(T23:AA23)*IF(AB23="SI",1,2)*IF(AND(Q23<>"0,000",O23="RF"),Q23/100,1)) -> 2593.8
C24: 55b | D24: 299703 | E24: 2478 | F24: LAS FLORES | G24: TRAFO 2 | H24: 15 | I24: 132/33/13,2 | J24: =H24*$I$16 -> 19.65 | K24: 2016-02-22T20:45:00 | L24: 2016-02-24T10:50:00 | M24: =IF(F24="","",(L24-K24)*24) -> 38.08333333 | N24: =IF(F24="","",ROUND((L24-K24)*24*60,0)) -> 2285 | O24: RF | P24: =IF(F24="","",IF(OR(O24="P",O24="RP"),"--","NO")) -> NO | Q24: 0,000 | R24: NO | S24: =$I$17*IF(OR(O24="P",O24="RP"),0.1,1)*IF(R24="SI",1,0.1) -> 6 | T24: =IF(O24="P",J24*S24*ROUND(N24/60,2),"--") -> -- | U24: =IF(O24="RP",J24*S24*ROUND(N24/60,2)*Q24/100,"--") -> -- | V24: =IF(AND(O24="F",P24="NO"),J24*S24,"--") -> -- | W24: =IF(O24="F",J24*S24*ROUND(N24/60,2),"--") -> -- | X24: =IF(AND(O24="R",P24="NO"),J24*S24*Q24/100,"--") -> -- | Y24: =IF(O24="R",J24*S24*ROUND(N24/60,2)*Q24/100,"--") -> -- | Z24: =IF(O24="RF",J24*S24*ROUND(N24/60,2),"--") -> 4489.632 | AA24: =IF(O24="RR",J24*S24*ROUND(N24/60,2)*Q24/100,"--") -> -- | AB24: =IF(F24="","","SI") -> SI | AC24: =IF(F24="","",SUM(T24:AA24)*IF(AB24="SI",1,2)*IF(AND(Q24<>"0,000",O24="RF"),Q24/100,1)) -> 4489.632
C25: 56 | D25: 299708 | E25: 4832 | F25: CHAÑARES | G25: TRAFO 1 | H25: 30 | I25: 132/33/13,2 | J25: 39.3 | K25: 2016-02-23T08:59:00 | L25: 2016-02-23T13:46:00 | M25: 4.783333333 | N25: 287 | O25: P | P25: -- | Q25: 0,000 | R25: NO | S25: 0.6 | T25: 112.7124 | U25: -- | V25: -- | W25: -- | X25: -- | Y25: -- | Z25: -- | AA25: -- | AB25: SI | AC25: 112.7124
C26: 57 | D26: 299713 | E26: 2477 | F26: LAS FLORES | G26: TRAFO 1 | H26: 15 | I26: 132/33/13,2 | J26: 19.65 | K26: 2016-02-24T08:28:00 | L26: 2016-02-24T13:32:00 | M26: 5.066666667 | N26: 304 | O26: P | P26: -- | Q26: 0,000 | R26: NO | S26: 0.6 | T26: 59.7753 | U26: -- | V26: -- | W26: -- | X26: -- | Y26: -- | Z26: -- | AA26: -- | AB26: SI | AC26: 59.7753
C27: 58 | D27: 299714 | E27: 4832 | F27: CHAÑARES | G27: TRAFO 1 | H27: 30 | I27: 132/33/13,2 | J27: 39.3 | K27: 2016-02-24T08:28:00 | L27: 2016-02-24T13:32:00 | M27: 5.066666667 | N27: 304 | O27: P | P27: -- | Q27: 0,000 | R27: NO | S27: 0.6 | T27: 119.5506 | U27: -- | V27: -- | W27: -- | X27: -- | Y27: -- | Z27: -- | AA27: -- | AB27: SI | AC27: 119.5506
C28: 59 | D28: 299720 | E28: 4832 | F28: CHAÑARES | G28: TRAFO 1 | H28: 30 | I28: 132/33/13,2 | J28: 39.3 | K28: 2016-02-25T08:12:00 | L28: 2016-02-25T16:00:00 | M28: 7.8 | N28: 468 | O28: P | P28: -- | Q28: 0,000 | R28: NO | S28: 0.6 | T28: 183.924 | U28: -- | V28: -- | W28: -- | X28: -- | Y28: -- | Z28: -- | AA28: -- | AB28: SI | AC28: 183.924
C29: 60 | D29: 299723 | E29: 4832 | F29: CHAÑARES | G29: TRAFO 1 | H29: 30 | I29: 132/33/13,2 | J29: 39.3 | K29: 2016-02-26T08:59:00 | L29: 2016-02-26T13:33:00 | M29: 4.566666667 | N29: 274 | O29: P | P29: -- | Q29: 0,000 | R29: NO | S29: 0.6 | T29: 107.7606 | U29: -- | V29: -- | W29: -- | X29: -- | Y29: -- | Z29: -- | AA29: -- | AB29: SI | AC29: 107.7606
C30: 61 | D30: 299724 | E30: 2296 | F30: OLAVARRIA VIEJA | G30: T1OA | H30: 30 | I30: 132/33/13,2 | J30: 39.3 | K30: 2016-02-26T09:34:00 | L30: 2016-02-26T13:02:00 | M30: 3.466666667 | N30: 208 | O30: P | P30: -- | Q30: 0,000 | R30: NO | S30: 0.6 | T30: 81.8226 | U30: -- | V30: -- | W30: -- | X30: -- | Y30: -- | Z30: -- | AA30: -- | AB30: SI | AC30: 81.8226
C31: 62 | D31: 299725 | E31: 2431 | F31: VILLA GESELL | G31: TRAFO 3 | H31: 40 | I31: 132/13,2 | J31: 52.4 | K31: 2016-02-27T14:41:00 | L31: 2016-02-27T19:23:00 | M31: 4.7 | N31: 282 | O31: F | P31: NO | Q31: 0,000 | R31: NO | S31: =$I$17*IF(OR(O31="P",O31="RP"),0.1,1)*IF(R31="SI",1,0.1) -> 6 | T31: =IF(O31="P",J31*S31*ROUND(N31/60,2),"--") -> -- | U31: =IF(O31="RP",J31*S31*ROUND(N31/60,2)*Q31/100,"--") -> -- | V31: =IF(AND(O31="F",P31="NO"),J31*S31,"--") -> 314.4 | W31: =IF(O31="F",J31*S31*ROUND(N31/60,2),"--") -> 1477.68 | X31: =IF(AND(O31="R",P31="NO"),J31*S31*Q31/100,"--") -> -- | Y31: =IF(O31="R",J31*S31*ROUND(N31/60,2)*Q31/100,"--") -> -- | Z31: =IF(O31="RF",J31*S31*ROUND(N31/60,2),"--") -> -- | AA31: =IF(O31="RR",J31*S31*ROUND(N31/60,2)*Q31/100,"--") -> -- | AB31: SI | AC31: 1792.08
C32: 63 | D32: 299727 | E32: 2608 | F32: CAMPANA | G32: TRAFO 2 | H32: 30 | I32: 132/33/13,2 | J32: 39.3 | K32: 2016-02-28T08:23:00 | L32: 2016-02-28T17:21:00 | M32: 8.966666667 | N32: 538 | O32: P | P32: -- | Q32: 0,000 | R32: NO | S32: 0.6 | T32: 211.5126 | U32: -- | V32: -- | W32: -- | X32: -- | Y32: -- | Z32: -- | AA32: -- | AB32: SI | AC32: 211.5126
C33: 64 | D33: 299729 | E33: 2296 | F33: OLAVARRIA VIEJA | G33: T1OA | H33: 30 | I33: 132/33/13,2 | J33: 39.3 | K33: 2016-02-29T09:06:00 | L33: 2016-02-29T14:44:00 | M33: 5.633333333 | N33: 338 | O33: P | P33: -- | Q33: 0,000 | R33: NO | S33: 0.6 | T33: 132.7554 | U33: -- | V33: -- | W33: -- | X33: -- | Y33: -- | Z33: -- | AA33: -- | AB33: SI | AC33: 132.7554
J34: 0 | Q34: =IF(F34="","","--") ->  | R34: =IF(F34="","","NO") ->  | S34: 6 | T34: -- | U34: -- | V34: -- | W34: -- | X34: -- | Y34: -- | Z34: -- | AA34: --
J35: 0 | S35: 6 | T35: -- | U35: -- | V35: -- | W35: -- | X35: -- | Y35: -- | Z35: -- | AA35: --
J36: 0 | S36: 6 | T36: -- | U36: -- | V36: -- | W36: -- | X36: -- | Y36: -- | Z36: -- | AA36: --
J37: 0 | S37: 6 | T37: -- | U37: -- | V37: -- | W37: -- | X37: -- | Y37: -- | Z37: -- | AA37: --
J38: 0 | S38: 6 | T38: -- | U38: -- | V38: -- | W38: -- | X38: -- | Y38: -- | Z38: -- | AA38: --
J39: 0 | R39: =IF(F39="","","NO") ->  | S39: 6 | T39: -- | U39: -- | V39: -- | W39: -- | X39: -- | Y39: -- | Z39: -- | AA39: --
J40: 0 | S40: 6 | T40: -- | U40: -- | V40: -- | W40: -- | X40: -- | Y40: -- | Z40: -- | AA40: --
J41: 0 | S41: 6 | T41: -- | U41: -- | V41: -- | W41: -- | X41: -- | Y41: -- | Z41: -- | AA41: -- | AB41: =IF(F41="","","SI") -> 
J42: 0 | S42: 6 | T42: -- | U42: -- | V42: -- | W42: -- | X42: -- | Y42: -- | Z42: -- | AA42: --
C44: (²) | D44: P - PROGRAMADA ; F - FORZADA ; R - REDUCCIÓN FORZADA | T44: =SUM(T20:T43) -> 1009.8135 | U44: =SUM(U20:U43) -> 0 | V44: =SUM(V20:V43) -> 1493.4 | W44: =SUM(W22:W43) -> 2892.48 | X44: =SUM(X20:X43) -> 94.32 | Y44: =SUM(Y22:Y43) -> 1749.636 | Z44: =SUM(Z20:Z43) -> 4489.632 | AA44: =SUM(AA22:AA43) -> 0 | AC44: =ROUND(SUM(AC20:AC43),2) -> 45584

Sheet SA-02 (1)
B2: ='TOT-0216'!B2 -> ANEXO III al Memorándum D.T.E.E. N° 243 / 2017
A4: ENTE NACIONAL REGULADOR
A5: DE LA ELECTRICIDAD
F8: SISTEMA DE TRANSPORTE DE ENERGÍA ELÉCTRICA POR DISTRIBUCIÓN TRONCAL - TRANSBA S.A.
F10: 2.2.- Salidas
B12: ='TOT-0216'!B14 -> Desde el 01 al 29 de Febrero de 2016
F14: Salida en 220 kV | G14: 34.93 | H14: =60*'TOT-0216'!B13 -> 60 | J14: =IF(H14=60," ",IF(H14=120," Coeficiente duplicado por tasa de falla >4 Sal. x año/100 km."," REVISAR COEFICIENTE")) -> 
F15: Salida en 132 kV o 66 kV = | G15: 17.466 | H15: =50*'TOT-0216'!B13 -> 50 | J15: =IF(H15=50," ",IF(H15=100," Coeficiente duplicado por tasa de falla >4 Sal. x año/100 km."," REVISAR COEFICIENTE")) -> 
F16: Salida en 33 kV | G16: 13.097 | H16: =50*'TOT-0216'!B13 -> 50 | J16: =IF(H16=50," ",IF(H16=100," Coeficiente duplicado por tasa de falla >4 Sal. x año/100 km."," REVISAR COEFICIENTE")) -> 
F17: Salida en 13,2 kV = | G17: 13.097 | H17: =40*'TOT-0216'!B13 -> 40 | J17: =IF(H17=40," ",IF(H17=80," Coeficiente duplicado por tasa de falla >4 Sal. x año/100 km."," REVISAR COEFICIENTE")) -> 
C18: 3 | D18: 4 | E18: 5 | F18: 6 | G18: 7 | H18: 8 | I18: 9 | J18: 10 | K18: 11 | L18: 12 | M18: 13 | N18: 14 | O18: 15 | P18: 16 | Q18: 17 | R18: 18 | S18: 19 | T18: 20 | U18: 21 | V18: 22
C19: N° | D19: INDISP | E19: ID EQUIPO | F19: ESTACIÓN TRANSFORMADORA | G19: EQUIPO | H19: U [kV] | I19: $/h | J19: Salida | K19: Entrada | L19: Hs Indisp. | M19: Minutos. Indisp. | N19: Tipo Sal.(²) | O19: AUT. | P19: K (U) | Q19: PENALIZAC. PROGRAM. | R19: PENALIZACIÓN FORZADA Por Salida hs. Restantes | T19: RESTANTE FORZADA | U19: Informó en Térm. | V19: TOTAL PENALIZAC.
C22: 65 | D22: 298620 | E22: 2654 | F22: TORNQUIST | G22: Alimentador 1 PAPEL TORNQUIST | H22: 13.2 | I22: =IF(H22=220,$G$14,IF(AND(H22<=132,H22>=66),$G$15,IF(AND(H22<66,H22>=33),$G$16,$G$17))) -> 13.097 | J22: 2016-02-03T07:47:00 | K22: 2016-02-03T16:57:00 | L22: =IF(F22="","",(K22-J22)*24) -> 9.166666667 | M22: =IF(F22="","",ROUND((K22-J22)*24*60,0)) -> 550 | N22: P | O22: =IF(F22="","",IF(OR(N22="P",N22="RP"),"--","NO")) -> -- | P22: =IF(H22=220,$H$14,IF(AND(H22<=132,H22>=66),$H$15,IF(AND(H22<66,H22>13.2),$H$16,$H$17))) -> 40 | Q22: =IF(N22="P",I22*P22*ROUND(M22/60,2)*0.1,"--") -> 480.39796 | R22: =IF(AND(N22="F",O22="NO"),I22*P22,"--") -> -- | S22: =IF(N22="F",I22*P22*ROUND(M22/60,2),"--") -> -- | T22: =IF(N22="RF",I22*P22*ROUND(M22/60,2),"--") -> -- | U22: SI | V22: =IF(F22="","",SUM(Q22:T22)*IF(U22="SI",1,2)*IF(H22="500/220",0,1)) -> 480.39796
C23: 66 | D23: 298621 | E23: 2655 | F23: TORNQUIST | G23: Alimentador 2 PAPEL TORNQUIST | H23: 13.19999981 | I23: 13.097 | J23: 2016-02-03T07:48:00 | K23: 2016-02-03T16:57:00 | L23: 9.15 | M23: 549 | N23: P | O23: -- | P23: 40 | Q23: 479.3502 | R23: -- | S23: -- | T23: -- | U23: SI | V23: 479.3502
C24: 67 | D24: 298623 | E24: 2650 | F24: TORNQUIST | G24: Alimentador 1 | H24: 33 | I24: 13.097 | J24: 2016-02-03T08:03:00 | K24: 2016-02-03T17:08:00 | L24: 9.083333333 | M24: 545 | N24: P | O24: -- | P24: 50 | Q24: 594.6038 | R24: -- | S24: -- | T24: -- | U24: SI | V24: 594.6038
C25: 68 | D25: 298626 | E25: 2408 | F25: LAS ARMAS | G25: Alimentador 1 a LAS ARMAS | H25: 13.19999981 | I25: 13.097 | J25: 2016-02-04T04:03:00 | K25: 2016-02-04T06:41:00 | L25: 2.633333333 | M25: 158 | N25: P | O25: -- | P25: 40 | Q25: 137.78044 | R25: -- | S25: -- | T25: -- | U25: SI | V25: 137.78044
C26: 69 | D26: 298637 | E26: 2261 | F26: HENDERSON | G26: SALIDA TRAFO 500/132 | H26: 132 | I26: 17.466 | J26: 2016-02-06T09:17:00 | K26: 2016-02-06T21:01:00 | L26: 11.73333333 | M26: 704 | N26: P | O26: -- | P26: 50 | Q26: 1024.3809 | R26: -- | S26: -- | T26: -- | U26: SI | V26: 0
C28: 71 | D28: 298646 | E28: 2092 | F28: SAN NICOLAS | G28: SALIDA A RyCSA | H28: 33 | I28: 13.097 | J28: 2016-02-07T05:54:00 | K28: 2016-02-07T13:10:00 | L28: 7.266666667 | M28: 436 | N28: P | O28: -- | P28: 50 | Q28: 476.07595 | R28: -- | S28: -- | T28: -- | U28: SI | V28: 476.07595
C29: 72 | D29: 298647 | E29: 2261 | F29: HENDERSON | G29: SALIDA TRAFO 500/132 | H29: 132 | I29: 17.466 | J29: 2016-02-07T07:48:00 | K29: 2016-02-07T13:38:00 | L29: 5.833333333 | M29: 350 | N29: P | O29: -- | P29: 50 | Q29: 509.1339 | R29: -- | S29: -- | T29: -- | U29: SI | V29: 0
C30: 73 | D30: 298833 | E30: 2261 | F30: HENDERSON | G30: SALIDA TRAFO 500/132 | H30: 132 | I30: 17.466 | J30: 2016-02-08T14:31:00 | K30: 2016-02-08T14:50:00 | L30: 0.3166666667 | M30: 19 | N30: P | O30: -- | P30: 50 | Q30: 27.9456 | R30: -- | S30: -- | T30: -- | U30: SI | V30: 0
C31: 74 | D31: 298834 | E31: 3146 | F31: PROTISA | G31: SALIDA A TRAFO 132/13,2 | H31: 132 | I31: 17.466 | J31: 2016-02-09T08:39:00 | K31: 2016-02-09T12:52:00 | L31: 4.216666667 | M31: 253 | N31: P | O31: -- | P31: 50 | Q31: 368.5326 | R31: -- | S31: -- | T31: -- | U31: SI | V31: 0
C32: 75 | D32: 298853 | E32: 4447 | F32: VILLA GESELL | G32: SALIDA TG14 | H32: 132 | I32: 17.466 | J32: 2016-02-11T08:34:00 | K32: 2016-02-11T12:26:00 | L32: 3.866666667 | M32: 232 | N32: P | O32: -- | P32: 50 | Q32: 337.9671 | R32: -- | S32: -- | T32: -- | U32: SI | V32: 0
C33: 76 | D33: 298909 | E33: 2178 | F33: BRAGADO | G33: SALIDA WARNER-O´BRIEN | H33: 33 | I33: 13.097 | J33: 2016-02-12T12:00:00 | K33: 2016-02-12T12:38:00 | L33: 0.6333333333 | M33: 38 | N33: F | O33: NO | P33: 50 | Q33: -- | R33: 654.85 | S33: 412.5555 | T33: -- | U33: SI | V33: 1067.4055
C35: 78 | D35: 298910 | E35: 2294 | F35: CHACABUCO | G35: SALIDA 7 A CHACABUCO | H35: 13.2 | I35: 13.097 | J35: 2016-02-12T12:00:00 | K35: 2016-02-12T12:31:00 | L35: 0.5166666666 | M35: 31 | N35: F | O35: NO | P35: 40 | Q35: -- | R35: 523.88 | S35: 272.4176 | T35: -- | U35: SI | V35: 796.2976
C36: 79 | D36: 298924 | E36: 2634 | F36: PETROQUIMICA | G36: SALIDA CARGILL | H36: 33 | I36: 13.097 | J36: 2016-02-13T07:35:00 | K36: 2016-02-13T17:52:00 | L36: 10.28333333 | M36: 617 | N36: P | O36: -- | P36: 50 | Q36: 673.1858 | R36: -- | S36: -- | T36: -- | U36: SI | V36: 673.1858
C38: 81 | D38: 299401 | E38: 2397 | F38: TRES ARROYOS | G38: SALIDA 1 A G. CHAVES | H38: 33 | I38: 13.097 | J38: 2016-02-16T09:37:00 | K38: 2016-02-16T13:53:00 | L38: 4.266666667 | M38: 256 | N38: P | O38: -- | P38: 50 | Q38: 279.62095 | R38: -- | S38: -- | T38: -- | U38: SI | V38: 279.62095
C39: 82 | D39: 299406 | E39: 2398 | F39: TRES ARROYOS | G39: SALIDA 2 A G. CHAVES | H39: 33 | I39: 13.097 | J39: 2016-02-17T11:35:00 | K39: 2016-02-17T14:33:00 | L39: 2.966666667 | M39: 178 | N39: P | O39: -- | P39: 50 | Q39: 194.49045 | R39: -- | S39: -- | T39: -- | U39: SI | V39: 194.49045
I40: 13.097 | P40: 40 | Q40: -- | R40: -- | S40: -- | T40: -- | U40: =IF(F40="","","SI") -> 
C42: (²) | D42: P - PROGRAMADA ; F - FORZADA | Q42: =SUM(Q20:Q41) -> 5583.46565 | R42: =SUM(R20:R41) -> 1178.73 | S42: =SUM(S20:S41) -> 684.9731 | T42: =SUM(T20:T41) -> 0 | V42: =ROUND(SUM(V20:V41),2) -> 5179.21

Sheet SA-02 (2)
B2: ='TOT-0216'!B2 -> ANEXO III al Memorándum D.T.E.E. N° 243 / 2017
A4: ENTE NACIONAL REGULADOR
A5: DE LA ELECTRICIDAD
F8: SISTEMA DE TRANSPORTE DE ENERGÍA ELÉCTRICA POR DISTRIBUCIÓN TRONCAL - TRANSBA S.A.
F10: 2.2.- Salidas
B12: ='TOT-0216'!B14 -> Desde el 01 al 29 de Febrero de 2016
F14: Salida en 220 kV | G14: 34.93 | H14: =60*'TOT-0216'!B13 -> 60 | J14: =IF(H14=60," ",IF(H14=120," Coeficiente duplicado por tasa de falla >4 Sal. x año/100 km."," REVISAR COEFICIENTE")) -> 
F15: Salida en 132 kV o 66 kV = | G15: 17.466 | H15: =50*'TOT-0216'!B13 -> 50 | J15: =IF(H15=50," ",IF(H15=100," Coeficiente duplicado por tasa de falla >4 Sal. x año/100 km."," REVISAR COEFICIENTE")) -> 
F16: Salida en 33 kV | G16: 13.097 | H16: =50*'TOT-0216'!B13 -> 50 | J16: =IF(H16=50," ",IF(H16=100," Coeficiente duplicado por tasa de falla >4 Sal. x año/100 km."," REVISAR COEFICIENTE")) -> 
F17: Salida en 13,2 kV = | G17: 13.097 | H17: =40*'TOT-0216'!B13 -> 40 | J17: =IF(H17=40," ",IF(H17=80," Coeficiente duplicado por tasa de falla >4 Sal. x año/100 km."," REVISAR COEFICIENTE")) -> 
C18: 3 | D18: 4 | E18: 5 | F18: 6 | G18: 7 | H18: 8 | I18: 9 | J18: 10 | K18: 11 | L18: 12 | M18: 13 | N18: 14 | O18: 15 | P18: 16 | Q18: 17 | R18: 18 | S18: 19 | T18: 20 | U18: 21 | V18: 22
C19: N° | D19: INDISP | E19: ID EQUIPO | F19: ESTACIÓN TRANSFORMADORA | G19: EQUIPO | H19: U [kV] | I19: $/h | J19: Salida | K19: Entrada | L19: Hs Indisp. | M19: Minutos. Indisp. | N19: Tipo Sal.(²) | O19: AUT. | P19: K (U) | Q19: PENALIZAC. PROGRAM. | R19: PENALIZACIÓN FORZADA Por Salida hs. Restantes | T19: RESTANTE FORZADA | U19: Informó en Térm. | V19: TOTAL PENALIZAC.
V20: ='SA-02 (1)'!V42 -> 5179.21
C22: 83 | D22: 299407 | E22: 2324 | F22: G. CHAVES | G22: SALIDA A TRES ARROYOS | H22: 33 | I22: =IF(H22=220,$G$14,IF(AND(H22<=132,H22>=66),$G$15,IF(AND(H22<66,H22>=33),$G$16,$G$17))) -> 13.097 | J22: 2016-02-17T11:40:00 | K22: 2016-02-17T14:30:00 | L22: =IF(F22="","",(K22-J22)*24) -> 2.833333333 | M22: =IF(F22="","",ROUND((K22-J22)*24*60,0)) -> 170 | N22: P | O22: =IF(F22="","",IF(OR(N22="P",N22="RP"),"--","NO")) -> -- | P22: =IF(H22=220,$H$14,IF(AND(H22<=132,H22>=66),$H$15,IF(AND(H22<66,H22>13.2),$H$16,$H$17))) -> 50 | Q22: =IF(N22="P",I22*P22*ROUND(M22/60,2)*0.1,"--") -> 185.32255 | R22: =IF(AND(N22="F",O22="NO"),I22*P22,"--") -> -- | S22: =IF(N22="F",I22*P22*ROUND(M22/60,2),"--") -> -- | T22: =IF(N22="RF",I22*P22*ROUND(M22/60,2),"--") -> -- | U22: SI | V22: =IF(F22="","",SUM(Q22:T22)*IF(U22="SI",1,2)*IF(H22="500/220",0,1)) -> 185.32255
C23: 84 | D23: 299408 | E23: 2324 | F23: G. CHAVES | G23: SALIDA A TRES ARROYOS | H23: 33 | I23: 13.097 | J23: 2016-02-18T07:34:00 | K23: 2016-02-18T12:53:00 | L23: 5.316666667 | M23: 319 | N23: P | O23: =IF(F23="","",IF(OR(N23="P",N23="RP"),"--","NO")) -> -- | P23: 50 | Q23: 348.3802 | R23: -- | S23: -- | T23: -- | U23: SI | V23: 348.3802
C24: 85 | D24: 299409 | E24: 2398 | F24: TRES ARROYOS | G24: SALIDA 2 A G. CHAVES | H24: 33 | I24: 13.097 | J24: 2016-02-18T07:34:00 | K24: 2016-02-18T12:39:00 | L24: 5.083333333 | M24: 305 | N24: P | O24: -- | P24: 50 | Q24: 332.6638 | R24: -- | S24: -- | T24: -- | U24: SI | V24: 332.6638
C25: 86 | D25: 299412 | E25: 2502 | F25: PUNTA ALTA | G25: SALIDA 1 A P.S. GRUNBEIN | H25: 33 | I25: 13.097 | J25: 2016-02-18T08:54:00 | K25: 2016-02-18T16:39:00 | L25: 7.75 | M25: 465 | N25: P | O25: -- | P25: 50 | Q25: 507.50875 | R25: -- | S25: -- | T25: -- | U25: SI | V25: 507.50875
C26: 87 | D26: 299413 | E26: 2504 | F26: PUNTA ALTA | G26: SALIDA 4 A B. NABAL P. BELGRANO | H26: 33 | I26: 13.097 | J26: 2016-02-18T09:12:00 | K26: 2016-02-18T16:04:00 | L26: 6.866666667 | M26: 412 | N26: P | O26: -- | P26: 50 | Q26: 449.88195 | R26: -- | S26: -- | T26: -- | U26: SI | V26: 449.88195
C27: 88 | D27: 299415 | E27: 2142 | F27: ARRECIFES | G27: SALIDA 1 A ARRECIFES | H27: 13.2 | I27: 13.097 | J27: 2016-02-18T11:22:00 | K27: 2016-02-18T13:34:00 | L27: 2.2 | M27: 132 | N27: P | O27: -- | P27: 40 | Q27: 115.2536 | R27: -- | S27: -- | T27: -- | U27: SI | V27: 115.2536
C29: 90 | D29: 299421 | E29: 2545 | F29: PIGUE | G29: SALIDA 3 A SAAVEDRA | H29: 33 | I29: 13.097 | J29: 2016-02-19T08:40:00 | K29: 2016-02-19T16:00:00 | L29: 7.333333333 | M29: 440 | N29: P | O29: -- | P29: 50 | Q29: 480.00505 | R29: -- | S29: -- | T29: -- | U29: SI | V29: 480.00505
C30: 91 | D30: 299425 | E30: 2505 | F30: PUNTA ALTA | G30: SALIDA 6 A B. NABAL P. BELGRANO | H30: 33 | I30: 13.097 | J30: 2016-02-19T09:27:00 | K30: 2016-02-19T16:00:00 | L30: 6.55 | M30: 393 | N30: P | O30: -- | P30: 50 | Q30: 428.92675 | R30: -- | S30: -- | T30: -- | U30: SI | V30: 428.92675
C31: 92 | D31: 299426 | E31: 2503 | F31: PUNTA ALTA | G31: SALIDA 2 A P.S. GRUNBEIN | H31: 13.19999981 | I31: 13.097 | J31: 2016-02-19T09:32:00 | K31: 2016-02-19T16:21:00 | L31: 6.816666667 | M31: 409 | N31: P | O31: -- | P31: 40 | Q31: 357.28616 | R31: -- | S31: -- | T31: -- | U31: SI | V31: 357.28616
C32: 93 | D32: 299709 | E32: 4447 | F32: VILLA GESELL | G32: SALIDA TG14 | H32: 132 | I32: 17.466 | J32: 2016-02-24T04:50:00 | K32: 2016-02-24T11:35:00 | L32: 6.75 | M32: 405 | N32: P | O32: -- | P32: 50 | Q32: 589.4775 | R32: -- | S32: -- | T32: -- | U32: SI | V32: 0
C36: 97 | D36: 299718 | E36: 2384 | F36: BARKER | G36: Alimentador 3 a Coop.BARKER | H36: 13.2 | I36: 13.097 | J36: 2016-02-25T07:32:00 | K36: 2016-02-25T08:45:00 | L36: 1.216666667 | M36: 73 | N36: P | O36: -- | P36: 40 | Q36: 63.91336 | R36: -- | S36: -- | T36: -- | U36: SI | V36: 63.91336
I37: 13.097 | P37: 40 | Q37: -- | R37: -- | S37: -- | T37: --
I38: 13.097 | P38: 40 | Q38: -- | R38: -- | S38: -- | T38: --
I39: 13.097 | P39: 40 | Q39: -- | R39: -- | S39: -- | T39: --
I40: 13.097 | P40: 40 | Q40: -- | R40: -- | S40: -- | T40: --
I41: 13.097 | P41: 40 | Q41: -- | R41: -- | S41: -- | T41: -- | U41: =IF(F41="","","SI") -> 
C43: (²) | D43: P - PROGRAMADA ; F - FORZADA | Q43: =SUM(Q20:Q42) -> 3858.61967 | R43: =SUM(R20:R42) -> 0 | S43: =SUM(S20:S42) -> 0 | T43: =SUM(T20:T42) -> 0 | V43: =ROUND(SUM(V20:V42),2) -> 8448.35

Sheet RE-02 (1)
B2: ='TOT-0216'!B2 -> ANEXO III al Memorándum D.T.E.E. N° 243 / 2017
A4: ENTE NACIONAL REGULADOR
A5: DE LA ELECTRICIDAD
F8: SISTEMA DE TRANSPORTE DE ENERGÍA ELÉCTRICA POR DISTRIBUCIÓN TRONCAL - TRANSBA S.A.
F10: 3.- REACTIVA
F12: 3.- Equipamiento propio Res. 01_03
B14: ='TOT-0216'!B14 -> Desde el 01 al 29 de Febrero de 2016
F16: Coeficiente de penalización por salida forzada = | J16: =60*'TOT-0216'!B13 -> 60 | L16: =IF(J16=60," ",IF(J16=120," Coeficiente duplicado por tasa de falla >4 Sal. x año/100 km."," REVISAR COEFICIENTE")) -> 
C17: 3 | D17: 4 | E17: 5 | F17: 6 | G17: 7 | H17: 8 | I17: 9 | J17: 10 | K17: 11 | L17: 12 | M17: 13 | N17: 14 | O17: 15 | P17: 16 | Q17: 17 | R17: 18 | S17: 19 | T17: 20 | U17: 21 | V17: 22 | W17: 23 | X17: 24 | Y17: 25 | Z17: 26 | AA17: 27 | AB17: 28 | AC17: 29 | AD17: 30
C18: N° | D18: INDISP | E18: ID EQUIPO | F18: ESTACIÓN TRANSFORMADORA | G18: EQUIPO | H18: POT. [MVA] | I18: MVA $ = | J18: U [kV] | K18: $/h | L18: Salida | M18: Entrada | N18: Hs Indisp. | O18: Minutos. Indisp. | P18: Tipo Sal.(²) | Q18: AUT. | R18: C.R. % | S18: E.N.S. | T18: K (P y ENS) | U18: PENALIZ. PROGRAM. | V18: REDUCC. PROGRAM. | W18: PENALIZACIÓN FORZADA Por Salida hs. Restantes | Y18: REDUCC. FORZADA Por Salida hs. Restantes | AA18: RESTANTE FORZADA | AB18: REDUCC. RESTANTE | AC18: Informó en Térm. | AD18: TOTAL PENALIZAC.
K20: =H20*I20 -> 0 | N20: =IF(F20="","",(M20-L20)*24) ->  | O20: =IF(F20="","",ROUND((M20-L20)*24*60,0)) ->  | T20: =$J$16*IF(OR(P20="P",P20="RP"),0.1,1)*IF(S20="SI",1,0.1) -> 6 | U20: =IF(P20="P",K20*T20*ROUND(O20/60,2),"--") -> -- | V20: =IF(P20="RP",K20*T20*ROUND(O20/60,2)*R20/100,"--") -> -- | W20: =IF(AND(P20="F",Q20="NO"),K20*T20,"--") -> -- | X20: =IF(P20="F",K20*T20*ROUND(O20/60,2),"--") -> -- | Y20: =IF(AND(P20="R",Q20="NO"),K20*T20*R20/100,"--") -> -- | Z20: =IF(P20="R",K20*T20*ROUND(O20/60,2)*R20/100,"--") -> -- | AA20: =IF(P20="RF",K20*T20*ROUND(O20/60,2),"--") -> -- | AB20: =IF(P20="RR",K20*T20*ROUND(O20/60,2)*R20/100,"--") -> -- | AD20: =IF(F20="","",SUM(U20:AB20)*IF(AC20="SI",1,2)) -> 
C21: 98 | D21: 298649 | E21: 4450 | F21: MERCEDES | G21: CAP K1MD | H21: 1.5 | I21: 4.874 | J21: 13.19999981 | K21: =H21*I21 -> 7.311 | L21: 2016-02-07T17:03:00 | M21: 2016-02-10T13:18:00 | N21: 68.25 | O21: 4095 | P21: F | Q21: =IF(F21="","",IF(OR(P21="P",P21="RP"),"--","NO")) -> NO | R21: =IF(F21="","","--") -> -- | S21: =IF(F21="","","NO") -> NO | T21: 6 | U21: -- | V21: -- | W21: 43.866 | X21: 2993.8545 | Y21: -- | Z21: -- | AA21: -- | AB21: -- | AC21: SI | AD21: 3037.7205
C22: 99 | D22: 298854 | E22: 4460 | F22: JUNIN | G22: K1JU | H22: 1.5 | I22: 4.874 | J22: 13.19999981 | K22: =H22*I22 -> 7.311 | L22: 2016-02-12T11:09:00 | M22: 2016-02-12T14:27:00 | N22: =IF(F22="","",(M22-L22)*24) -> 3.3 | O22: =IF(F22="","",ROUND((M22-L22)*24*60,0)) -> 198 | P22: F | Q22: =IF(F22="","",IF(OR(P22="P",P22="RP"),"--","NO")) -> NO | R22: =IF(F22="","","--") -> -- | S22: =IF(F22="","","NO") -> NO | T22: =$J$16*IF(OR(P22="P",P22="RP"),0.1,1)*IF(S22="SI",1,0.1) -> 6 | U22: =IF(P22="P",K22*T22*ROUND(O22/60,2),"--") -> -- | V22: =IF(P22="RP",K22*T22*ROUND(O22/60,2)*R22/100,"--") -> -- | W22: =IF(AND(P22="F",Q22="NO"),K22*T22,"--") -> 43.866 | X22: =IF(P22="F",K22*T22*ROUND(O22/60,2),"--") -> 144.7578 | Y22: =IF(AND(P22="R",Q22="NO"),K22*T22*R22/100,"--") -> -- | Z22: =IF(P22="R",K22*T22*ROUND(O22/60,2)*R22/100,"--") -> -- | AA22: =IF(P22="RF",K22*T22*ROUND(O22/60,2),"--") -> -- | AB22: =IF(P22="RR",K22*T22*ROUND(O22/60,2)*R22/100,"--") -> -- | AC22: SI | AD22: =IF(F22="","",SUM(U22:AB22)*IF(AC22="SI",1,2)) -> 188.6238
C23: 100 | D23: 298920 | E23: 4460 | F23: MERCEDES | G23: CAP K1MD | H23: 1.5 | I23: 4.874 | J23: 13.19999981 | K23: 7.311 | L23: 2015-12-10T16:12:00 | M23: 2015-12-10T19:48:00 | N23: 3.6 | O23: 216 | P23: F | Q23: =IF(F23="","",IF(OR(P23="P",P23="RP"),"--","NO")) -> NO | R23: =IF(F23="","","--") -> -- | S23: =IF(F23="","","NO") -> NO | T23: 6 | U23: -- | V23: -- | W23: 43.866 | X23: 157.9176 | Y23: -- | Z23: -- | AA23: -- | AB23: -- | AC23: SI | AD23: 201.7836
C24: 101 | D24: 299710 | E24: 4458 | F24: CHIVILCOY | G24: K1CI | H24: 1.5 | I24: 4.198 | J24: 13.19999981 | K24: 6.297 | L24: 2016-02-12T14:44:00 | M24: 2016-02-12T16:25:00 | N24: 1.683333333 | O24: 101 | P24: P | Q24: -- | R24: -- | S24: NO | T24: 0.6 | U24: 6.347376 | V24: -- | W24: -- | X24: -- | Y24: -- | Z24: -- | AA24: -- | AB24: -- | AC24: SI | AD24: 6.347376
C25: 102 | D25: 299711 | E25: 4459 | F25: CHIVILCOY | G25: K2CI | H25: 3 | I25: 4.198 | J25: 13.19999981 | K25: 12.594 | L25: 2016-02-24T06:15:00 | M25: 2016-02-24T11:03:00 | N25: 4.8 | O25: 288 | P25: P | Q25: -- | R25: -- | S25: NO | T25: 0.6 | U25: 36.27072 | V25: -- | W25: -- | X25: -- | Y25: -- | Z25: -- | AA25: -- | AB25: -- | AC25: SI | AD25: 36.27072
K26: 0 | T26: 6 | U26: -- | V26: -- | W26: -- | X26: -- | Y26: -- | Z26: -- | AA26: -- | AB26: -- | AC26: =IF(F26="","","SI") -> 
K27: 0 | T27: 6 | U27: -- | V27: -- | W27: -- | X27: -- | Y27: -- | Z27: -- | AA27: -- | AB27: --
K28: 0 | T28: 6 | U28: -- | V28: -- | W28: -- | X28: -- | Y28: -- | Z28: -- | AA28: -- | AB28: --
K29: =H29*I29 -> 0 | T29: 6 | U29: -- | V29: -- | W29: -- | X29: -- | Y29: -- | Z29: -- | AA29: -- | AB29: --
K30: =H30*I30 -> 0 | T30: 6 | U30: -- | V30: -- | W30: -- | X30: -- | Y30: -- | Z30: -- | AA30: -- | AB30: --
K31: 0 | T31: 6 | U31: -- | V31: -- | W31: -- | X31: -- | Y31: -- | Z31: -- | AA31: -- | AB31: --
K32: 0 | T32: 6 | U32: -- | V32: -- | W32: -- | X32: -- | Y32: -- | Z32: -- | AA32: -- | AB32: --
K33: 0 | T33: 6 | U33: -- | V33: -- | W33: -- | X33: -- | Y33: -- | Z33: -- | AA33: -- | AB33: --
K34: 0 | T34: 6 | U34: -- | V34: -- | W34: -- | X34: -- | Y34: -- | Z34: -- | AA34: -- | AB34: --
K35: 0 | T35: 6 | U35: -- | V35: -- | W35: -- | X35: -- | Y35: -- | Z35: -- | AA35: -- | AB35: --
K36: 0 | T36: 6 | U36: -- | V36: -- | W36: -- | X36: -- | Y36: -- | Z36: -- | AA36: -- | AB36: --
K37: 0 | T37: 6 | U37: -- | V37: -- | W37: -- | X37: -- | Y37: -- | Z37: -- | AA37: -- | AB37: --
K38: 0 | T38: 6 | U38: -- | V38: -- | W38: -- | X38: -- | Y38: -- | Z38: -- | AA38: -- | AB38: --
K39: 0 | T39: 6 | U39: -- | V39: -- | W39: -- | X39: -- | Y39: -- | Z39: -- | AA39: -- | AB39: --
K40: 0 | T40: 6 | U40: -- | V40: -- | W40: -- | X40: -- | Y40: -- | Z40: -- | AA40: -- | AB40: --
K41: 0 | T41: 6 | U41: -- | V41: -- | W41: -- | X41: -- | Y41: -- | Z41: -- | AA41: -- | AB41: --
K42: 0 | T42: 6 | U42: -- | V42: -- | W42: -- | X42: -- | Y42: -- | Z42: -- | AA42: -- | AB42: --
C44: (²) | D44: P - PROGRAMADA ; F - FORZADA | U44: =SUM(U19:U43) -> 42.618096 | V44: =SUM(V19:V43) -> 0 | W44: =SUM(W19:W43) -> 131.598 | X44: =SUM(X21:X43) -> 3296.5299 | Y44: =SUM(Y19:Y43) -> 0 | Z44: =SUM(Z21:Z43) -> 0 | AA44: =SUM(AA19:AA43) -> 0 | AB44: =SUM(AB21:AB43) -> 0 | AD44: =ROUND(SUM(AD19:AD43),2) -> 3470.75

Sheet DATO
A1: Mes | B1: Mes | C1: Dia | D1: Año
A2: enero | B2: 01 | C2: 31 | D2: 2006
A3: febrero | B3: 02 | C3: =IF(MOD(E14,4)=0,29,28) -> 29 | D3: =+D2+1 -> 2007
A4: marzo | B4: 03 | C4: 31 | D4: 2008
A5: abril | B5: 04 | C5: 30 | D5: 2009
A6: mayo | B6: 05 | C6: 31 | D6: 2010
A7: junio | B7: 06 | C7: 30 | D7: 2011
A8: julio | B8: 07 | C8: 31 | D8: 2012
A9: agosto | B9: 08 | C9: 31 | D9: 2013
A10: septiembre | B10: 09 | C10: 30 | D10: 2014
A11: octubre | B11: 10 | C11: 31 | D11: 2015
A12: noviembre | B12: 11 | C12: 30 | D12: 2016
A13: diciembre | B13: 12 | C13: 31 | I13: Total
A14: 11 | B14: 2 | C14: =CELL("CONTENIDO",OFFSET(A1,B14,0)) -> febrero | D14: =CELL("CONTENIDO",OFFSET(C1,B14,0)) -> 29 | E14: =CELL("CONTENIDO",OFFSET(D1,A14,0)) -> 2016 | F14: ="Desde el 01 al " & D14 & " de " & C14 & " de " & E14 -> Desde el 01 al 29 de febrero de 2016 | G14: =CELL("CONTENIDO",OFFSET(B1,B14,0)) -> 02 | H14: =RIGHT(E14,2) -> 16 | I14: B14
B15: ="\\rugor\files\Transporte\Transporte\AA PROCESO AUT ARCHIVOS J\TRANSBA\" &E14 -> \\rugor\files\Transporte\Transporte\AA PROCESO AUT ARCHIVOS J\TRANSBA\2016 | G15: ="J"&G14&H14&"TBA" -> J0216TBA
B16: ="\\rugor\files\Transporte\transporte\AA PROCESO AUT\INTERCAMBIO\" &H14&G14 -> \\rugor\files\Transporte\transporte\AA PROCESO AUT\INTERCAMBIO\1602
A17: Hoja | B17: FilaInicio | C17: FilasPlantilla | D17: Columnas | E17: NombreHoja | F17: OrigenDeDatos | G17: Col00 | H17: Col01 | I17: Col02 | J17: Col03 | K17: Col04 | L17: Col05 | M17: Col06 | N17: Col07 | O17: Col08 | P17: Col09 | Q17: Col10 | R17: Col11 | S17: Col12 | T17: Col13 | U17: Col14 | V17: Col15 | W17: FILHTOTAL | X17: COLHTOTAL | Y17: FILHCALC | Z17: COLHCALC | AA17: FILTRANSP | AB17: COLTRANSP | AC17: COL TSAL
A18: MODELO L | B18: 21 | C18: 20 | D18: 12 | E18: ="LI-" & $G$14 -> LI-02 | F18: TRANSBA_INDISPONIBILIDADES_LINEAS_TRANSBA.XLS | G18: 3 | H18: 5 | I18: 4 | J18: 6 | K18: 7 | L18: 8 | M18: 9 | N18: 11 | O18: 12 | P18: 15 | Q18: 0 | R18: 28 | S18: 16 | T18: 0 | U18: 0 | V18: 0 | W18: 18 | X18: 9 | Y18: 42 | Z18: 29 | AA18: 19 | AB18: 29 | AC18: 15
A19: MODELO T | B19: 22 | C19: 20 | D19: 13 | E19: ="T-" & $G$14 -> T-02 | F19: TRANSBA_INDISPONIBILIDADES_TRAFOS_TRANSBA.XLS | G19: 3 | H19: 5 | I19: 4 | J19: 6 | K19: 7 | L19: 8 | M19: 9 | N19: 11 | O19: 12 | P19: 15 | Q19: 16 | R19: 18 | S19: 28 | T19: 17 | U19: 0 | V19: 0 | W19: 22 | X19: 9 | Y19: 43 | Z19: 29 | AA19: 20 | AB19: 29 | AC19: 15
A20: MODELO S | B20: 22 | C20: 20 | D20: 10 | E20: ="SA-" & $G$14 -> SA-02 | F20: TRANSBA_INDISPONIBILIDADES_SALIDAS_TRANSBA.XLS | G20: 3 | H20: 5 | I20: 4 | J20: 6 | K20: 7 | L20: 8 | M20: 10 | N20: 11 | O20: 14 | P20: 15 | Q20: 21 | R20: 0 | S20: 0 | T20: 0 | U20: 0 | V20: 0 | W20: 24 | X20: 9 | Y20: 43 | Z20: 22 | AA20: 20 | AB20: 22 | AC20: 14
A21: MODELO R | B21: 21 | C21: 20 | D21: 12 | E21: ="RE-" & $G$14 -> RE-02 | F21: TRANSBA_INDISPONIBILIDADES_REACTIVOS_TRANSBA.XLS | G21: 3 | H21: 5 | I21: 4 | J21: 6 | K21: 7 | L21: 8 | M21: 9 | N21: 10 | O21: 12 | P21: 13 | Q21: 16 | R21: 17 | S21: 29 | T21: 18 | U21: 0 | V21: 0 | W21: 26 | X21: 9 | Y21: 43 | Z21: 30 | AA21: 20 | AB21: 30 | AC21: 16
A22: MODELO VST | B22: 19 | C22: 24 | D22: 4 | E22: ="CAUSAS-VST-" & $G$14 -> CAUSAS-VST-02 | F22: TRANSBA_CAUSAS_VST.XLS | G22: 3 | H22: 4 | I22: 5 | J22: 6 | K22: 7 | L22: 0 | M22: 0 | N22: 0 | O22: 0 | P22: 0 | Q22: 0 | R22: 0 | S22: 0 | T22: 0 | U22: 0 | V22: 0 | W22: 999 | X22: 999 | Y22: 0 | Z22: 0 | AA22: 0 | AB22: 0 | AC22: 0
